Workbook

Sheet Results13of18
B1: WALLASEY ATHLETIC CLUB GRAND PRIX 2022-2023 | E1: MT Royden Park 06/09/22 | F1: MT Wallasey 13/09/22 | G1: MT WCP 20/09/22 | H1: MT Arrowe Park 27/09/22 | I1: BL 1 New Brighton 16/10/22 | J1: BL 2 Tattenhall 13/11/22 | K1: L&D Champs Sefton Park 26/11/2022 | L1: BL 3 Trac Mon 18/12/22 | M1: Merseyside CC Arrowe Park 07/01/23 | N1: Northern CC Blackburn 28/01/23 | O1: L&D Champs Clarke's Garden 19/02/23 | P1: National CC Tattenhall 26/02/23 | Q1: BL 5 cancelled 19/03/23 | R1: BL 6 Mold 16/04/23 | S1: BL 4 Delamere 23/04/23 | T1: BL 7 Prestatyn 17/05/23 | U1: Total
A2: MEN | B2: Division 1 | C2: 1 | D2: PEARSE, Rob | E2: 30 | F2: 29 | G2: 29 | H2: 29 | I2: 28 | J2: 27 | K2: 29 | L2: 29 | M2: 29 | N2: 29 | O2: 29 | P2: 30 | Q2: 0 | R2: 0 | S2: 29 | T2: 0 | U2: =VLOOKUP(D2,SortBest!A:T,20,FALSE) -> 321
C3: 2 | D3: BARBAT, Tony | E3: 26 | F3: 28 | G3: 27 | H3: 27 | I3: 25 | J3: 24 | K3: 25 | L3: 25 | M3: 26 | N3: 27 | O3: 0 | P3: 0 | Q3: 0 | R3: 28 | S3: 27 | T3: 26 | U3: =VLOOKUP(D3,SortBest!A:T,20,FALSE) -> 292
C4: 3 | D4: NORTON, Steve | E4: 25 | F4: 27 | G4: 26 | H4: 26 | I4: 23 | J4: 20 | K4: 0 | L4: 24 | M4: 0 | N4: 0 | O4: 27 | P4: 0 | Q4: 0 | R4: 26 | S4: 25 | T4: 24 | U4: =VLOOKUP(D4,SortBest!A:T,20,FALSE) -> 273
C5: 4 | D5: CHADWICK, Oliver | E5: 0 | F5: 30 | G5: 30 | H5: 30 | I5: 29 | J5: 28 | K5: 30 | L5: 30 | M5: 30 | N5: 0 | O5: 0 | P5: 0 | Q5: 0 | R5: 29 | S5: 0 | T5: 0 | U5: =VLOOKUP(D5,SortBest!A:T,20,FALSE) -> 266
C6: 5 | D6: MCALISTER, Dave | E6: 0 | F6: 26 | G6: 23 | H6: 25 | I6: 22 | J6: 19 | K6: 22 | L6: 23 | M6: 24 | N6: 0 | O6: 0 | P6: 26 | Q6: 0 | R6: 25 | S6: 24 | T6: 23 | U6: =VLOOKUP(D6,SortBest!A:T,20,FALSE) -> 263
C7: 6 | D7: CUTHBERT, Phil | E7: 27 | F7: 0 | G7: 28 | H7: 28 | I7: 0 | J7: 0 | K7: 24 | L7: 0 | M7: 0 | N7: 28 | O7: 0 | P7: 28 | Q7: 0 | R7: 0 | S7: 0 | T7: 25 | U7: =VLOOKUP(D7,SortBest!A:T,20,FALSE) -> 188
C8: 7 | D8: JONES, Christopher | E8: 0 | F8: 0 | G8: 0 | H8: 0 | I8: 27 | J8: 26 | K8: 0 | L8: 28 | M8: 0 | N8: 30 | O8: 0 | P8: 0 | Q8: 0 | R8: 0 | S8: 28 | T8: 29 | U8: =VLOOKUP(D8,SortBest!A:T,20,FALSE) -> 168
C9: 8 | D9: HARLEY-GRIFFITHS, Mike | E9: 0 | F9: 24 | G9: 24 | H9: 23 | I9: 20 | J9: 18 | K9: 21 | L9: 0 | M9: 0 | N9: 26 | O9: 0 | P9: 0 | Q9: 0 | R9: 0 | S9: 0 | T9: 0 | U9: =VLOOKUP(D9,SortBest!A:T,20,FALSE) -> 156
C10: 9 | D10: BODEN, Joe | E10: 0 | F10: 0 | G10: 0 | H10: 0 | I10: 30 | J10: 30 | K10: 0 | L10: 0 | M10: 0 | N10: 0 | O10: 0 | P10: 0 | Q10: 0 | R10: 30 | S10: 30 | T10: 30 | U10: =VLOOKUP(D10,SortBest!A:T,20,FALSE) -> 150
C11: 10 | D11: BASSETT, John | E11: 0 | F11: 0 | G11: 0 | H11: 0 | I11: 0 | J11: 21 | K11: 23 | L11: 0 | M11: 25 | N11: 0 | O11: 28 | P11: 27 | Q11: 0 | R11: 0 | S11: 26 | T11: 0 | U11: =VLOOKUP(D11,SortBest!A:T,20,FALSE) -> 150
C12: 11 | D12: GILLBANKS, Matt | E12: 0 | F12: 0 | G12: 0 | H12: 0 | I12: 26 | J12: 25 | K12: 0 | L12: 26 | M12: 27 | N12: 0 | O12: 0 | P12: 0 | Q12: 0 | R12: 0 | S12: 0 | T12: 27 | U12: =VLOOKUP(D12,SortBest!A:T,20,FALSE) -> 131
C13: 12 | D13: BIRD, Phil | E13: 24 | F13: 25 | G13: 25 | H13: 24 | I13: 21 | J13: 0 | K13: 0 | L13: 0 | M13: 0 | N13: 0 | O13: 0 | P13: 0 | Q13: 0 | R13: 0 | S13: 0 | T13: 0 | U13: =VLOOKUP(D13,SortBest!A:T,20,FALSE) -> 119
C14: 13 | D14: BREALEY, Steve | E14: 0 | F14: 0 | G14: 0 | H14: 0 | I14: 0 | J14: 0 | K14: 28 | L14: 27 | M14: 28 | N14: 0 | O14: 0 | P14: 0 | Q14: 0 | R14: 0 | S14: 0 | T14: 28 | U14: =VLOOKUP(D14,SortBest!A:T,20,FALSE) -> 111
C15: 14 | D15: HALL, Kevin | E15: 0 | F15: 0 | G15: 0 | H15: 0 | I15: 24 | J15: 23 | K15: 0 | L15: 0 | M15: 0 | N15: 0 | O15: 0 | P15: 0 | Q15: 0 | R15: 27 | S15: 0 | T15: 0 | U15: =VLOOKUP(D15,SortBest!A:T,20,FALSE) -> 74
C16: 15 | D16: POLAND, Jack | E16: 0 | F16: 0 | G16: 0 | H16: 0 | I16: 0 | J16: 29 | K16: 0 | L16: 0 | M16: 0 | N16: 0 | O16: 30 | P16: 0 | Q16: 0 | R16: 0 | S16: 0 | T16: 0 | U16: =VLOOKUP(D16,SortBest!A:T,20,FALSE) -> 59
C17: 16 | D17: MCARDLE, Connor | E17: 0 | F17: 0 | G17: 0 | H17: 0 | I17: 0 | J17: 0 | K17: 27 | L17: 0 | M17: 0 | N17: 0 | O17: 0 | P17: 29 | Q17: 0 | R17: 0 | S17: 0 | T17: 0 | U17: =VLOOKUP(D17,SortBest!A:T,20,FALSE) -> 56
C18: 17 | D18: WALKER, Jay | E18: 29 | F18: 0 | G18: 0 | H18: 0 | I18: 0 | J18: 22 | K18: 0 | L18: 0 | M18: 0 | N18: 0 | O18: 0 | P18: 0 | Q18: 0 | R18: 0 | S18: 0 | T18: 0 | U18: =VLOOKUP(D18,SortBest!A:T,20,FALSE) -> 51
C19: 18 | D19: DABNER, Phil | E19: 28 | F19: 0 | G19: 0 | H19: 0 | I19: 0 | J19: 0 | K19: 0 | L19: 0 | M19: 0 | N19: 0 | O19: 0 | P19: 0 | Q19: 0 | R19: 0 | S19: 0 | T19: 0 | U19: =VLOOKUP(D19,SortBest!A:T,20,FALSE) -> 28
C20: 19 | D20: GREEN, Mike | E20: 0 | F20: 0 | G20: 0 | H20: 0 | I20: 0 | J20: 0 | K20: 26 | L20: 0 | M20: 0 | N20: 0 | O20: 0 | P20: 0 | Q20: 0 | R20: 0 | S20: 0 | T20: 0 | U20: =VLOOKUP(D20,SortBest!A:T,20,FALSE) -> 26
B21: Division 2 | C21: 1 | D21: COSGROVE, Steve | E21: 23 | F21: 26 | G21: 28 | H21: 29 | I21: 27 | J21: 25 | K21: 0 | L21: 27 | M21: 29 | N21: 30 | O21: 30 | P21: 30 | Q21: 0 | R21: 28 | S21: 28 | T21: 28 | U21: =VLOOKUP(D21,SortBest!A:T,20,FALSE) -> 314
C22: 2 | D22: BARHAM, Pete | E22: 17 | F22: 17 | G22: 19 | H22: 19 | I22: 17 | J22: 16 | K22: 0 | L22: 24 | M22: 26 | N22: 29 | O22: 27 | P22: 0 | Q22: 0 | R22: 0 | S22: 26 | T22: 25 | U22: =VLOOKUP(D22,SortBest!A:T,20,FALSE) -> 246
C23: 3 | D23: WHITWORTH, Rab | E23: 20 | F23: 20 | G23: 23 | H23: 23 | I23: 21 | J23: 18 | K23: 0 | L23: 25 | M23: 27 | N23: 0 | O23: 0 | P23: 0 | Q23: 0 | R23: 0 | S23: 27 | T23: 26 | U23: =VLOOKUP(D23,SortBest!A:T,20,FALSE) -> 230
C24: 4 | D24: ROBSON, Michael | E24: 28 | F24: 29 | G24: 29 | H24: 0 | I24: 28 | J24: 26 | K24: 0 | L24: 28 | M24: 0 | N24: 0 | O24: 0 | P24: 0 | Q24: 0 | R24: 0 | S24: 29 | T24: 30 | U24: =VLOOKUP(D24,SortBest!A:T,20,FALSE) -> 227
C25: 5 | D25: DYSON, Mike | E25: 21 | F25: 25 | G25: 27 | H25: 28 | I25: 25 | J25: 21 | K25: 0 | L25: 0 | M25: 0 | N25: 0 | O25: 29 | P25: 0 | Q25: 0 | R25: 0 | S25: 0 | T25: 0 | U25: =VLOOKUP(D25,SortBest!A:T,20,FALSE) -> 176
C26: 6 | D26: SEAL, Brian | E26: 16 | F26: 22 | G26: 22 | H26: 22 | I26: 22 | J26: 19 | K26: 0 | L26: 22 | M26: 0 | N26: 0 | O26: 28 | P26: 0 | Q26: 0 | R26: 0 | S26: 0 | T26: 0 | U26: =VLOOKUP(D26,SortBest!A:T,20,FALSE) -> 173
C27: 7 | D27: FAYLE, Joseph | E27: 27 | F27: 28 | G27: 0 | H27: 25 | I27: 23 | J27: 24 | K27: 0 | L27: 0 | M27: 0 | N27: 0 | O27: 0 | P27: 0 | Q27: 0 | R27: 27 | S27: 0 | T27: 0 | U27: =VLOOKUP(D27,SortBest!A:T,20,FALSE) -> 154
C28: 8 | D28: BROMLEY, Andrew | E28: 0 | F28: 0 | G28: 0 | H28: 0 | I28: 30 | J28: 30 | K28: 0 | L28: 30 | M28: 0 | N28: 0 | O28: 0 | P28: 0 | Q28: 0 | R28: 30 | S28: 30 | T28: 0 | U28: =VLOOKUP(D28,SortBest!A:T,20,FALSE) -> 150
C29: 9 | D29: FOSTER, Stewart | E29: 10 | F29: 8 | G29: 14 | H29: 14 | I29: 9 | J29: 0 | K29: 0 | L29: 0 | M29: 25 | N29: 0 | O29: 0 | P29: 0 | Q29: 0 | R29: 25 | S29: 23 | T29: 20 | U29: =VLOOKUP(D29,SortBest!A:T,20,FALSE) -> 148
C30: 10 | D30: JOHNSTONE, Paul | E30: 24 | F30: 23 | G30: 25 | H30: 24 | I30: 0 | J30: 22 | K30: 0 | L30: 0 | M30: 0 | N30: 0 | O30: 0 | P30: 0 | Q30: 0 | R30: 0 | S30: 0 | T30: 0 | U30: =VLOOKUP(D30,SortBest!A:T,20,FALSE) -> 118
C31: 11 | D31: HOLMES, Tony | E31: 11 | F31: 12 | G31: 13 | H31: 13 | I31: 8 | J31: 12 | K31: 0 | L31: 21 | M31: 0 | N31: 0 | O31: 0 | P31: 0 | Q31: 0 | R31: 0 | S31: 0 | T31: 21 | U31: =VLOOKUP(D31,SortBest!A:T,20,FALSE) -> 111
C32: 12 | D32: HAMPSHIRE, William | E32: 26 | F32: 27 | G32: 26 | H32: 27 | I32: 0 | J32: 0 | K32: 0 | L32: 0 | M32: 0 | N32: 0 | O32: 0 | P32: 0 | Q32: 0 | R32: 0 | S32: 0 | T32: 0 | U32: =VLOOKUP(D32,SortBest!A:T,20,FALSE) -> 106
C33: 13 | D33: POUSTIE, Mark | E33: 0 | F33: 0 | G33: 0 | H33: 0 | I33: 24 | J33: 23 | K33: 30 | L33: 0 | M33: 28 | N33: 0 | O33: 0 | P33: 0 | Q33: 0 | R33: 0 | S33: 0 | T33: 0 | U33: =VLOOKUP(D33,SortBest!A:T,20,FALSE) -> 105
C34: 14 | D34: GOUGH, Dermot | E34: 25 | F34: 24 | G34: 24 | H34: 26 | I34: 0 | J34: 0 | K34: 0 | L34: 0 | M34: 0 | N34: 0 | O34: 0 | P34: 0 | Q34: 0 | R34: 0 | S34: 0 | T34: 0 | U34: =VLOOKUP(D34,SortBest!A:T,20,FALSE) -> 99
C35: 15 | D35: WARREN, Dominic | E35: 18 | F35: 18 | G35: 18 | H35: 20 | I35: 19 | J35: 0 | K35: 0 | L35: 0 | M35: 0 | N35: 0 | O35: 0 | P35: 0 | Q35: 0 | R35: 0 | S35: 0 | T35: 0 | U35: =VLOOKUP(D35,SortBest!A:T,20,FALSE) -> 93
C36: 16 | D36: MCARDLE, Derek | E36: 0 | F36: 7 | G36: 0 | H36: 0 | I36: 14 | J36: 17 | K36: 29 | L36: 23 | M36: 0 | N36: 0 | O36: 0 | P36: 0 | Q36: 0 | R36: 0 | S36: 0 | T36: 0 | U36: =VLOOKUP(D36,SortBest!A:T,20,FALSE) -> 90
C37: 17 | D37: HAMPSHIRE, Luke | E37: 29 | F37: 30 | G37: 0 | H37: 30 | I37: 0 | J37: 0 | K37: 0 | L37: 0 | M37: 0 | N37: 0 | O37: 0 | P37: 0 | Q37: 0 | R37: 0 | S37: 0 | T37: 0 | U37: =VLOOKUP(D37,SortBest!A:T,20,FALSE) -> 89
C38: 18 | D38: SUMMERFIELD, Leon | E38: 15 | F38: 15 | G38: 16 | H38: 0 | I38: 15 | J38: 0 | K38: 0 | L38: 0 | M38: 0 | N38: 0 | O38: 26 | P38: 0 | Q38: 0 | R38: 0 | S38: 0 | T38: 0 | U38: =VLOOKUP(D38,SortBest!A:T,20,FALSE) -> 87
C39: 19 | D39: CLARK, Ray | E39: 0 | F39: 0 | G39: 0 | H39: 0 | I39: 29 | J39: 29 | K39: 0 | L39: 0 | M39: 0 | N39: 0 | O39: 0 | P39: 0 | Q39: 0 | R39: 29 | S39: 0 | T39: 0 | U39: =VLOOKUP(D39,SortBest!A:T,20,FALSE) -> 87
C40: 20 | D40: GORMAN, Louis | E40: 0 | F40: 0 | G40: 0 | H40: 0 | I40: 0 | J40: 27 | K40: 0 | L40: 29 | M40: 30 | N40: 0 | O40: 0 | P40: 0 | Q40: 0 | R40: 0 | S40: 0 | T40: 0 | U40: =VLOOKUP(D40,SortBest!A:T,20,FALSE) -> 86
C41: 21 | D41: ROUGHLEY, Andrew | E41: 22 | F41: 21 | G41: 21 | H41: 21 | I41: 0 | J41: 0 | K41: 0 | L41: 0 | M41: 0 | N41: 0 | O41: 0 | P41: 0 | Q41: 0 | R41: 0 | S41: 0 | T41: 0 | U41: =VLOOKUP(D41,SortBest!A:T,20,FALSE) -> 85
C42: 22 | D42: COLE, Steve | E42: 0 | F42: 0 | G42: 12 | H42: 17 | I42: 12 | J42: 15 | K42: 0 | L42: 0 | M42: 0 | N42: 0 | O42: 0 | P42: 0 | Q42: 0 | R42: 0 | S42: 25 | T42: 0 | U42: =VLOOKUP(D42,SortBest!A:T,20,FALSE) -> 81
C43: 23 | D43: GIBBONS, Neil | E43: 13 | F43: 11 | G43: 0 | H43: 16 | I43: 10 | J43: 14 | K43: 0 | L43: 0 | M43: 0 | N43: 0 | O43: 0 | P43: 0 | Q43: 0 | R43: 0 | S43: 0 | T43: 0 | U43: =VLOOKUP(D43,SortBest!A:T,20,FALSE) -> 64
C44: 24 | D44: SHARP, Ben | E44: 0 | F44: 0 | G44: 0 | H44: 0 | I44: 20 | J44: 20 | K44: 0 | L44: 0 | M44: 0 | N44: 0 | O44: 0 | P44: 0 | Q44: 0 | R44: 0 | S44: 0 | T44: 23 | U44: =VLOOKUP(D44,SortBest!A:T,20,FALSE) -> 63
C45: 25 | D45: GREENWOOD, Ryan | E45: 30 | F45: 0 | G45: 30 | H45: 0 | I45: 0 | J45: 0 | K45: 0 | L45: 0 | M45: 0 | N45: 0 | O45: 0 | P45: 0 | Q45: 0 | R45: 0 | S45: 0 | T45: 0 | U45: =VLOOKUP(D45,SortBest!A:T,20,FALSE) -> 60
C46: 26 | D46: WADE, David | E46: 19 | F46: 16 | G46: 20 | H46: 0 | I46: 0 | J46: 0 | K46: 0 | L46: 0 | M46: 0 | N46: 0 | O46: 0 | P46: 0 | Q46: 0 | R46: 0 | S46: 0 | T46: 0 | U46: =VLOOKUP(D46,SortBest!A:T,20,FALSE) -> 55
C47: 27 | D47: YEM, Alex | E47: 0 | F47: 0 | G47: 0 | H47: 0 | I47: 26 | J47: 0 | K47: 0 | L47: 26 | M47: 0 | N47: 0 | O47: 0 | P47: 0 | Q47: 0 | R47: 0 | S47: 0 | T47: 0 | U47: =VLOOKUP(D47,SortBest!A:T,20,FALSE) -> 52
C48: 28 | D48: GOODENOUGH, Mike | E48: 12 | F48: 10 | G48: 15 | H48: 15 | I48: 0 | J48: 0 | K48: 0 | L48: 0 | M48: 0 | N48: 0 | O48: 0 | P48: 0 | Q48: 0 | R48: 0 | S48: 0 | T48: 0 | U48: =VLOOKUP(D48,SortBest!A:T,20,FALSE) -> 52
C49: 29 | D49: SALES, Sean | E49: 0 | F49: 0 | G49: 0 | H49: 0 | I49: 0 | J49: 0 | K49: 0 | L49: 0 | M49: 0 | N49: 0 | O49: 0 | P49: 0 | Q49: 0 | R49: 0 | S49: 24 | T49: 22 | U49: =VLOOKUP(D49,SortBest!A:T,20,FALSE) -> 46
C50: 30 | D50: YANG, Jack | E50: 0 | F50: 0 | G50: 0 | H50: 0 | I50: 18 | J50: 0 | K50: 0 | L50: 0 | M50: 0 | N50: 0 | O50: 0 | P50: 0 | Q50: 0 | R50: 0 | S50: 0 | T50: 27 | U50: =VLOOKUP(D50,SortBest!A:T,20,FALSE) -> 45
C51: 31 | D51: PLESTED, Tim | E51: 0 | F51: 13 | G51: 17 | H51: 0 | I51: 11 | J51: 0 | K51: 0 | L51: 0 | M51: 0 | N51: 0 | O51: 0 | P51: 0 | Q51: 0 | R51: 0 | S51: 0 | T51: 0 | U51: =VLOOKUP(D51,SortBest!A:T,20,FALSE) -> 41
C52: 32 | D52: ALI, Abir | E52: 0 | F52: 0 | G52: 0 | H52: 0 | I52: 0 | J52: 11 | K52: 0 | L52: 0 | M52: 0 | N52: 0 | O52: 0 | P52: 0 | Q52: 0 | R52: 0 | S52: 0 | T52: 19 | U52: =VLOOKUP(D52,SortBest!A:T,20,FALSE) -> 30
C53: 33 | D53: WATSON, Luke | E53: 0 | F53: 0 | G53: 0 | H53: 0 | I53: 0 | J53: 0 | K53: 0 | L53: 0 | M53: 0 | N53: 0 | O53: 0 | P53: 0 | Q53: 0 | R53: 0 | S53: 0 | T53: 29 | U53: =VLOOKUP(D53,SortBest!A:T,20,FALSE) -> 29
C54: 34 | D54: JONES, Mike T | E54: 0 | F54: 0 | G54: 0 | H54: 0 | I54: 0 | J54: 28 | K54: 0 | L54: 0 | M54: 0 | N54: 0 | O54: 0 | P54: 0 | Q54: 0 | R54: 0 | S54: 0 | T54: 0 | U54: =VLOOKUP(D54,SortBest!A:T,20,FALSE) -> 28
C55: 35 | D55: CONNELL, Martin | E55: 14 | F55: 14 | G55: 0 | H55: 0 | I55: 0 | J55: 0 | K55: 0 | L55: 0 | M55: 0 | N55: 0 | O55: 0 | P55: 0 | Q55: 0 | R55: 0 | S55: 0 | T55: 0 | U55: =VLOOKUP(D55,SortBest!A:T,20,FALSE) -> 28
C56: 36 | D56: RAE, Nick | E56: 9 | F56: 6 | G56: 0 | H56: 12 | I56: 0 | J56: 0 | K56: 0 | L56: 0 | M56: 0 | N56: 0 | O56: 0 | P56: 0 | Q56: 0 | R56: 0 | S56: 0 | T56: 0 | U56: =VLOOKUP(D56,SortBest!A:T,20,FALSE) -> 27
C57: 37 | D57: MITCHELL, Rob | E57: 0 | F57: 0 | G57: 0 | H57: 0 | I57: 0 | J57: 0 | K57: 0 | L57: 0 | M57: 0 | N57: 0 | O57: 0 | P57: 0 | Q57: 0 | R57: 26 | S57: 0 | T57: 0 | U57: =VLOOKUP(D57,SortBest!A:T,20,FALSE) -> 26
C58: 38 | D58: STOCKER, Ken | E58: 8 | F58: 0 | G58: 0 | H58: 0 | I58: 6 | J58: 10 | K58: 0 | L58: 0 | M58: 0 | N58: 0 | O58: 0 | P58: 0 | Q58: 0 | R58: 0 | S58: 0 | T58: 0 | U58: =VLOOKUP(D58,SortBest!A:T,20,FALSE) -> 24
C59: 39 | D59: BACKINSELL, Jim | E59: 0 | F59: 0 | G59: 0 | H59: 0 | I59: 0 | J59: 0 | K59: 0 | L59: 0 | M59: 0 | N59: 0 | O59: 0 | P59: 0 | Q59: 0 | R59: 0 | S59: 0 | T59: 24 | U59: =VLOOKUP(D59,SortBest!A:T,20,FALSE) -> 24
C60: 40 | D60: CLARKE, Steve | E60: 0 | F60: 19 | G60: 0 | H60: 0 | I60: 0 | J60: 0 | K60: 0 | L60: 0 | M60: 0 | N60: 0 | O60: 0 | P60: 0 | Q60: 0 | R60: 0 | S60: 0 | T60: 0 | U60: =VLOOKUP(D60,SortBest!A:T,20,FALSE) -> 19
C61: 41 | D61: HOGG, John | E61: 0 | F61: 0 | G61: 0 | H61: 18 | I61: 0 | J61: 0 | K61: 0 | L61: 0 | M61: 0 | N61: 0 | O61: 0 | P61: 0 | Q61: 0 | R61: 0 | S61: 0 | T61: 0 | U61: =VLOOKUP(D61,SortBest!A:T,20,FALSE) -> 18
C62: 42 | D62: WILD, Joshua | E62: 0 | F62: 0 | G62: 0 | H62: 0 | I62: 16 | J62: 0 | K62: 0 | L62: 0 | M62: 0 | N62: 0 | O62: 0 | P62: 0 | Q62: 0 | R62: 0 | S62: 0 | T62: 0 | U62: =VLOOKUP(D62,SortBest!A:T,20,FALSE) -> 16
C63: 43 | D63: HAMPSON, Aiden | E63: 0 | F63: 0 | G63: 0 | H63: 0 | I63: 13 | J63: 0 | K63: 0 | L63: 0 | M63: 0 | N63: 0 | O63: 0 | P63: 0 | Q63: 0 | R63: 0 | S63: 0 | T63: 0 | U63: =VLOOKUP(D63,SortBest!A:T,20,FALSE) -> 13
C64: 44 | D64: PERRY, Robert | E64: 0 | F64: 0 | G64: 0 | H64: 0 | I64: 0 | J64: 13 | K64: 0 | L64: 0 | M64: 0 | N64: 0 | O64: 0 | P64: 0 | Q64: 0 | R64: 0 | S64: 0 | T64: 0 | U64: =VLOOKUP(D64,SortBest!A:T,20,FALSE) -> 13
C65: 45 | D65: NOBLE, Kenneth | E65: 0 | F65: 9 | G65: 0 | H65: 0 | I65: 0 | J65: 0 | K65: 0 | L65: 0 | M65: 0 | N65: 0 | O65: 0 | P65: 0 | Q65: 0 | R65: 0 | S65: 0 | T65: 0 | U65: =VLOOKUP(D65,SortBest!A:T,20,FALSE) -> 9
C66: 46 | D66: THOMAS, Dave | E66: 0 | F66: 0 | G66: 0 | H66: 0 | I66: 7 | J66: 0 | K66: 0 | L66: 0 | M66: 0 | N66: 0 | O66: 0 | P66: 0 | Q66: 0 | R66: 0 | S66: 0 | T66: 0 | U66: =VLOOKUP(D66,SortBest!A:T,20,FALSE) -> 7
B67: =B1 -> WALLASEY ATHLETIC CLUB GRAND PRIX 2022-2023 | E67: MT Royden Park 06/09/22 | F67: MT Wallasey 13/09/22 | G67: MT WCP 20/09/22 | H67: MT Arrowe Park 27/09/22 | I67: BL 1 New Brighton 16/10/22 | J67: BL 2 Tattenhall 13/11/22 | K67: L&D Champs Sefton Park 26/11/2022 | L67: BL 3 Trac Mon 18/12/22 | M67: Merseyside CC Arrowe Park 07/01/23 | N67: Northern CC Blackburn 28/01/23 | O67: L&D Champs Clarke's Garden 19/02/23 | P67: National CC Tattenhall 26/02/23 | Q67: BL 5 cancelled 19/03/23 | R67: BL 6 Mold 16/04/23 | S67: BL 4 Delamere 23/04/23 | T67: BL 7 Prestatyn 17/05/23 | U67: Total
A68: WOMEN | C68: 1 | D68: BLACKLOCK, Becky | E68: 30 | F68: 30 | G68: 30 | H68: 30 | I68: 30 | J68: 30 | K68: 30 | L68: 30 | M68: 30 | N68: 0 | O68: 30 | P68: 0 | Q68: 0 | R68: 30 | S68: 30 | T68: 30 | U68: =VLOOKUP(D68,SortBest!A:T,20,FALSE) -> 330
C69: 2 | D69: MCARD, Jan | E69: 27 | F69: 29 | G69: 29 | H69: 28 | I69: 29 | J69: 29 | K69: 0 | L69: 28 | M69: 27 | N69: 29 | O69: 0 | P69: 29 | Q69: 0 | R69: 0 | S69: 28 | T69: 29 | U69: =VLOOKUP(D69,SortBest!A:T,20,FALSE) -> 314
C70: 3 | D70: ALTY, Michelle | E70: 0 | F70: 0 | G70: 0 | H70: 0 | I70: 27 | J70: 26 | K70: 27 | L70: 27 | M70: 26 | N70: 30 | O70: 27 | P70: 30 | Q70: 0 | R70: 29 | S70: 29 | T70: 28 | U70: =VLOOKUP(D70,SortBest!A:T,20,FALSE) -> 306
C71: 4 | D71: REYNOLDS, Sue | E71: 28 | F71: 26 | G71: 27 | H71: 0 | I71: 28 | J71: 27 | K71: 0 | L71: 26 | M71: 28 | N71: 28 | O71: 25 | P71: 27 | Q71: 0 | R71: 26 | S71: 26 | T71: 0 | U71: =VLOOKUP(D71,SortBest!A:T,20,FALSE) -> 297
C72: 5 | D72: STANSFIELD, Helen-Anne | E72: 25 | F72: 0 | G72: 25 | H72: 26 | I72: 25 | J72: 25 | K72: 28 | L72: 25 | M72: 24 | N72: 0 | O72: 0 | P72: 0 | Q72: 0 | R72: 24 | S72: 0 | T72: 26 | U72: =VLOOKUP(D72,SortBest!A:T,20,FALSE) -> 253
C73: 6 | D73: GREENWOOD, Kirsty | E73: 23 | F73: 21 | G73: 23 | H73: 23 | I73: 18 | J73: 0 | K73: 24 | L73: 0 | M73: 20 | N73: 25 | O73: 21 | P73: 24 | Q73: 0 | R73: 0 | S73: 22 | T73: 24 | U73: =VLOOKUP(D73,SortBest!A:T,20,FALSE) -> 250
C74: 7 | D74: COWDRAY, Kat | E74: 0 | F74: 0 | G74: 0 | H74: 0 | I74: 26 | J74: 0 | K74: 26 | L74: 0 | M74: 22 | N74: 26 | O74: 24 | P74: 26 | Q74: 0 | R74: 27 | S74: 25 | T74: 27 | U74: =VLOOKUP(D74,SortBest!A:T,20,FALSE) -> 229
C75: 8 | D75: REES, Mary | E75: 21 | F75: 0 | G75: 24 | H75: 21 | I75: 21 | J75: 23 | K75: 0 | L75: 0 | M75: 19 | N75: 24 | O75: 0 | P75: 23 | Q75: 0 | R75: 19 | S75: 18 | T75: 15 | U75: =VLOOKUP(D75,SortBest!A:T,20,FALSE) -> 228
C76: 9 | D76: LAMONT, Sharon | E76: 18 | F76: 17 | G76: 21 | H76: 17 | I76: 0 | J76: 19 | K76: 21 | L76: 21 | M76: 16 | N76: 22 | O76: 17 | P76: 21 | Q76: 0 | R76: 18 | S76: 16 | T76: 17 | U76: =VLOOKUP(D76,SortBest!A:T,20,FALSE) -> 212
C77: 10 | D77: HUNTER, Maria | E77: 22 | F77: 22 | G77: 0 | H77: 22 | I77: 22 | J77: 0 | K77: 0 | L77: 22 | M77: 0 | N77: 0 | O77: 18 | P77: 25 | Q77: 0 | R77: 22 | S77: 21 | T77: 0 | U77: =VLOOKUP(D77,SortBest!A:T,20,FALSE) -> 196
C78: 11 | D78: KENNY, Anna | E78: 0 | F78: 0 | G78: 0 | H78: 0 | I78: 0 | J78: 0 | K78: 0 | L78: 24 | M78: 25 | N78: 27 | O78: 26 | P78: 28 | Q78: 0 | R78: 28 | S78: 27 | T78: 0 | U78: =VLOOKUP(D78,SortBest!A:T,20,FALSE) -> 185
C79: 12 | D79: ANDREWS, Katherine | E79: 10 | F79: 9 | G79: 12 | H79: 0 | I79: 20 | J79: 13 | K79: 20 | L79: 0 | M79: 0 | N79: 23 | O79: 12 | P79: 19 | Q79: 0 | R79: 23 | S79: 11 | T79: 21 | U79: =VLOOKUP(D79,SortBest!A:T,20,FALSE) -> 184
C80: 13 | D80: CUCKSEY, Lesley-Anne | E80: 0 | F80: 16 | G80: 18 | H80: 0 | I80: 0 | J80: 20 | K80: 0 | L80: 20 | M80: 17 | N80: 21 | O80: 19 | P80: 22 | Q80: 0 | R80: 17 | S80: 0 | T80: 13 | U80: =VLOOKUP(D80,SortBest!A:T,20,FALSE) -> 183
C81: 14 | D81: CUTHBERT, Caet | E81: 14 | F81: 11 | G81: 14 | H81: 15 | I81: 0 | J81: 15 | K81: 19 | L81: 0 | M81: 13 | N81: 20 | O81: 14 | P81: 20 | Q81: 0 | R81: 0 | S81: 0 | T81: 9 | U81: =VLOOKUP(D81,SortBest!A:T,20,FALSE) -> 164
C82: 15 | D82: CUTHBERT, Isabella | E82: 26 | F82: 27 | G82: 26 | H82: 27 | I82: 0 | J82: 24 | K82: 0 | L82: 0 | M82: 0 | N82: 0 | O82: 0 | P82: 0 | Q82: 0 | R82: 0 | S82: 0 | T82: 23 | U82: =VLOOKUP(D82,SortBest!A:T,20,FALSE) -> 153
C83: 16 | D83: ENGLE, Alison | E83: 20 | F83: 18 | G83: 22 | H83: 18 | I83: 17 | J83: 21 | K83: 0 | L83: 0 | M83: 15 | N83: 0 | O83: 15 | P83: 0 | Q83: 0 | R83: 0 | S83: 0 | T83: 0 | U83: =VLOOKUP(D83,SortBest!A:T,20,FALSE) -> 146
C84: 17 | D84: BARBAT, Julie | E84: 19 | F84: 20 | G84: 0 | H84: 20 | I84: 19 | J84: 0 | K84: 0 | L84: 0 | M84: 0 | N84: 0 | O84: 0 | P84: 0 | Q84: 0 | R84: 20 | S84: 19 | T84: 18 | U84: =VLOOKUP(D84,SortBest!A:T,20,FALSE) -> 135
C85: 18 | D85: BREALEY, Jane | E85: 0 | F85: 0 | G85: 0 | H85: 25 | I85: 0 | J85: 0 | K85: 25 | L85: 23 | M85: 23 | N85: 0 | O85: 0 | P85: 0 | Q85: 0 | R85: 0 | S85: 0 | T85: 25 | U85: =VLOOKUP(D85,SortBest!A:T,20,FALSE) -> 121
C86: 19 | D86: CRISP, Zoe | E86: 16 | F86: 0 | G86: 17 | H86: 0 | I86: 0 | J86: 22 | K86: 0 | L86: 0 | M86: 14 | N86: 0 | O86: 0 | P86: 0 | Q86: 0 | R86: 0 | S86: 17 | T86: 19 | U86: =VLOOKUP(D86,SortBest!A:T,20,FALSE) -> 105
C87: 20 | D87: RYAN, Jenny | E87: 0 | F87: 0 | G87: 0 | H87: 0 | I87: 0 | J87: 0 | K87: 0 | L87: 0 | M87: 0 | N87: 0 | O87: 23 | P87: 0 | Q87: 0 | R87: 25 | S87: 24 | T87: 22 | U87: =VLOOKUP(D87,SortBest!A:T,20,FALSE) -> 94
C88: 21 | D88: AINSLIE, Sharron | E88: 0 | F88: 25 | G88: 0 | H88: 0 | I88: 0 | J88: 0 | K88: 23 | L88: 0 | M88: 21 | N88: 0 | O88: 20 | P88: 0 | Q88: 0 | R88: 0 | S88: 0 | T88: 0 | U88: =VLOOKUP(D88,SortBest!A:T,20,FALSE) -> 89
C89: 22 | D89: FARLAM, Faye | E89: 0 | F89: 0 | G89: 0 | H89: 0 | I89: 0 | J89: 17 | K89: 0 | L89: 0 | M89: 0 | N89: 0 | O89: 0 | P89: 0 | Q89: 0 | R89: 21 | S89: 20 | T89: 20 | U89: =VLOOKUP(D89,SortBest!A:T,20,FALSE) -> 78
C90: 23 | D90: COSGROVE, Susie | E90: 0 | F90: 0 | G90: 0 | H90: 0 | I90: 14 | J90: 16 | K90: 0 | L90: 0 | M90: 0 | N90: 0 | O90: 0 | P90: 0 | Q90: 0 | R90: 16 | S90: 15 | T90: 16 | U90: =VLOOKUP(D90,SortBest!A:T,20,FALSE) -> 77
C91: 24 | D91: DAVIES, Nicci | E91: 15 | F91: 14 | G91: 16 | H91: 16 | I91: 12 | J91: 0 | K91: 0 | L91: 0 | M91: 0 | N91: 0 | O91: 0 | P91: 0 | Q91: 0 | R91: 0 | S91: 0 | T91: 0 | U91: =VLOOKUP(D91,SortBest!A:T,20,FALSE) -> 73
C92: 25 | D92: CHAPMAN, Nicci | E92: 0 | F92: 15 | G92: 0 | H92: 0 | I92: 13 | J92: 0 | K92: 0 | L92: 0 | M92: 11 | N92: 0 | O92: 13 | P92: 18 | Q92: 0 | R92: 0 | S92: 0 | T92: 0 | U92: =VLOOKUP(D92,SortBest!A:T,20,FALSE) -> 70
C93: 26 | D93: GARTLAND, Moira | E93: 0 | F93: 19 | G93: 0 | H93: 0 | I93: 0 | J93: 0 | K93: 22 | L93: 0 | M93: 18 | N93: 0 | O93: 0 | P93: 0 | Q93: 0 | R93: 0 | S93: 0 | T93: 0 | U93: =VLOOKUP(D93,SortBest!A:T,20,FALSE) -> 59
C94: 27 | D94: MCNICHOLAS, Hayley | E94: 9 | F94: 10 | G94: 13 | H94: 11 | I94: 0 | J94: 14 | K94: 0 | L94: 0 | M94: 0 | N94: 0 | O94: 0 | P94: 0 | Q94: 0 | R94: 0 | S94: 0 | T94: 0 | U94: =VLOOKUP(D94,SortBest!A:T,20,FALSE) -> 57
C95: 28 | D95: RILEY, Sandra | E95: 13 | F95: 0 | G95: 0 | H95: 14 | I95: 16 | J95: 0 | K95: 0 | L95: 0 | M95: 0 | N95: 0 | O95: 0 | P95: 0 | Q95: 0 | R95: 0 | S95: 12 | T95: 0 | U95: =VLOOKUP(D95,SortBest!A:T,20,FALSE) -> 55
C96: 29 | D96: TURNER, Yvette | E96: 0 | F96: 0 | G96: 0 | H96: 0 | I96: 15 | J96: 18 | K96: 0 | L96: 0 | M96: 0 | N96: 0 | O96: 0 | P96: 0 | Q96: 0 | R96: 0 | S96: 10 | T96: 11 | U96: =VLOOKUP(D96,SortBest!A:T,20,FALSE) -> 54
C97: 30 | D97: MCCONNELL, Vicky | E97: 0 | F97: 0 | G97: 0 | H97: 0 | I97: 24 | J97: 0 | K97: 0 | L97: 0 | M97: 0 | N97: 0 | O97: 28 | P97: 0 | Q97: 0 | R97: 0 | S97: 0 | T97: 0 | U97: =VLOOKUP(D97,SortBest!A:T,20,FALSE) -> 52
C98: 31 | D98: RYAN, Kate | E98: 0 | F98: 0 | G98: 0 | H98: 0 | I98: 0 | J98: 0 | K98: 0 | L98: 0 | M98: 0 | N98: 0 | O98: 22 | P98: 0 | Q98: 0 | R98: 0 | S98: 23 | T98: 0 | U98: =VLOOKUP(D98,SortBest!A:T,20,FALSE) -> 45
C99: 32 | D99: POLAND, Louise | E99: 0 | F99: 0 | G99: 19 | H99: 19 | I99: 0 | J99: 0 | K99: 0 | L99: 0 | M99: 0 | N99: 0 | O99: 0 | P99: 0 | Q99: 0 | R99: 0 | S99: 0 | T99: 0 | U99: =VLOOKUP(D99,SortBest!A:T,20,FALSE) -> 38
C100: 33 | D100: SAUNDERS, Rachel | E100: 17 | F100: 0 | G100: 20 | H100: 0 | I100: 0 | J100: 0 | K100: 0 | L100: 0 | M100: 0 | N100: 0 | O100: 0 | P100: 0 | Q100: 0 | R100: 0 | S100: 0 | T100: 0 | U100: =VLOOKUP(D100,SortBest!A:T,20,FALSE) -> 37
C101: 34 | D101: DROSZCZ, Kathleen | E101: 0 | F101: 23 | G101: 0 | H101: 12 | I101: 0 | J101: 0 | K101: 0 | L101: 0 | M101: 0 | N101: 0 | O101: 0 | P101: 0 | Q101: 0 | R101: 0 | S101: 0 | T101: 0 | U101: =VLOOKUP(D101,SortBest!A:T,20,FALSE) -> 35
C102: 35 | D102: HOLT, Sallie | E102: 0 | F102: 0 | G102: 0 | H102: 0 | I102: 0 | J102: 0 | K102: 0 | L102: 29 | M102: 0 | N102: 0 | O102: 0 | P102: 0 | Q102: 0 | R102: 0 | S102: 0 | T102: 0 | U102: =VLOOKUP(D102,SortBest!A:T,20,FALSE) -> 29
C103: 36 | D103: ELLISON, Sandra | E103: 12 | F103: 13 | G103: 0 | H103: 0 | I103: 0 | J103: 0 | K103: 0 | L103: 0 | M103: 0 | N103: 0 | O103: 0 | P103: 0 | Q103: 0 | R103: 0 | S103: 0 | T103: 0 | U103: =VLOOKUP(D103,SortBest!A:T,20,FALSE) -> 25
C104: 37 | D104: RICE, Kate | E104: 0 | F104: 0 | G104: 0 | H104: 0 | I104: 0 | J104: 0 | K104: 0 | L104: 0 | M104: 0 | N104: 0 | O104: 0 | P104: 0 | Q104: 0 | R104: 0 | S104: 13 | T104: 10 | U104: =VLOOKUP(D104,SortBest!A:T,20,FALSE) -> 23
C105: 38 | D105: REYNOLDS, Lydia | E105: 0 | F105: 0 | G105: 0 | H105: 0 | I105: 0 | J105: 0 | K105: 0 | L105: 0 | M105: 0 | N105: 0 | O105: 0 | P105: 0 | Q105: 0 | R105: 0 | S105: 0 | T105: 14 | U105: =VLOOKUP(D105,SortBest!A:T,20,FALSE) -> 14
C106: 39 | D106: MAGEE, Mary | E106: 11 | F106: 12 | G106: 15 | H106: 13 | I106: 0 | J106: 0 | K106: 0 | L106: 0 | M106: 12 | N106: 0 | O106: 16 | P106: 0 | Q106: 0 | R106: 0 | S106: 14 | T106: 12 | U106: =VLOOKUP(D106,SortBest!A:T,20,FALSE) -> 0
C107: 40 | D107: THOMPSON, Joniece | E107: 24 | F107: 24 | G107: 0 | H107: 24 | I107: 23 | J107: 0 | K107: 0 | L107: 0 | M107: 0 | N107: 0 | O107: 0 | P107: 0 | Q107: 0 | R107: 0 | S107: 0 | T107: 0 | U107: =VLOOKUP(D107,SortBest!A:T,20,FALSE) -> 0
C108: 41 | D108: OPARA, Elaine | E108: 29 | F108: 28 | G108: 28 | H108: 29 | I108: 0 | J108: 28 | K108: 29 | L108: 0 | M108: 29 | N108: 0 | O108: 29 | P108: 0 | Q108: 0 | R108: 0 | S108: 0 | T108: 0 | U108: =VLOOKUP(D108,SortBest!A:T,20,FALSE) -> 0
L109: Best 11 of 16 to count

Sheet Sheet1
A1: AgeCat | B1: RunnerGPDivision | C1: Name | D1: Race1Score | E1: Race2Score | F1: Race3Score | G1: Race4Score | H1: Race5Score | I1: Race6Score | J1: Race7Score | K1: Race8Score | L1: Race9Score | M1: Race10Score | N1: Race11Score | O1: Race12Score | P1: Race13Score | Q1: Race14Score | R1: Race15Score | S1: Race16Score | T1: Race17Score | U1: Race18Score
A2: 1 | B2: 1 | C2: BODEN, Joe | D2: 0 | E2: 0 | F2: 0 | G2: 0 | H2: 30 | I2: 30 | J2: 0 | K2: 0 | L2: 0 | M2: 0 | N2: 0 | O2: 0 | P2: 0 | Q2: 30 | R2: 30 | S2: 30 | T2: 0 | U2: 0
A3: 1 | B3: 1 | C3: JONES, Christopher | D3: 0 | E3: 0 | F3: 0 | G3: 0 | H3: 27 | I3: 26 | J3: 0 | K3: 28 | L3: 0 | M3: 30 | N3: 0 | O3: 0 | P3: 0 | Q3: 0 | R3: 28 | S3: 29 | T3: 0 | U3: 0
A4: 1 | B4: 1 | C4: CHADWICK, Oliver | D4: 0 | E4: 30 | F4: 30 | G4: 30 | H4: 29 | I4: 28 | J4: 30 | K4: 30 | L4: 30 | M4: 0 | N4: 0 | O4: 0 | P4: 0 | Q4: 29 | R4: 0 | S4: 0 | T4: 0 | U4: 0
A5: 1 | B5: 1 | C5: NORTON, Steve | D5: 25 | E5: 27 | F5: 26 | G5: 26 | H5: 23 | I5: 20 | J5: 0 | K5: 24 | L5: 0 | M5: 0 | N5: 27 | O5: 0 | P5: 0 | Q5: 26 | R5: 25 | S5: 24 | T5: 0 | U5: 0
A6: 1 | B6: 1 | C6: WALKER, Jay | D6: 29 | E6: 0 | F6: 0 | G6: 0 | H6: 0 | I6: 22 | J6: 0 | K6: 0 | L6: 0 | M6: 0 | N6: 0 | O6: 0 | P6: 0 | Q6: 0 | R6: 0 | S6: 0 | T6: 0 | U6: 0
A7: 1 | B7: 1 | C7: POLAND, Jack | D7: 0 | E7: 0 | F7: 0 | G7: 0 | H7: 0 | I7: 29 | J7: 0 | K7: 0 | L7: 0 | M7: 0 | N7: 30 | O7: 0 | P7: 0 | Q7: 0 | R7: 0 | S7: 0 | T7: 0 | U7: 0
A8: 1 | B8: 1 | C8: PEARSE, Rob | D8: 30 | E8: 29 | F8: 29 | G8: 29 | H8: 28 | I8: 27 | J8: 29 | K8: 29 | L8: 29 | M8: 29 | N8: 29 | O8: 30 | P8: 0 | Q8: 0 | R8: 29 | S8: 0 | T8: 0 | U8: 0
A9: 1 | B9: 1 | C9: GILLBANKS, Matt | D9: 0 | E9: 0 | F9: 0 | G9: 0 | H9: 26 | I9: 25 | J9: 0 | K9: 26 | L9: 27 | M9: 0 | N9: 0 | O9: 0 | P9: 0 | Q9: 0 | R9: 0 | S9: 27 | T9: 0 | U9: 0
A10: 1 | B10: 1 | C10: DABNER, Phil | D10: 28 | E10: 0 | F10: 0 | G10: 0 | H10: 0 | I10: 0 | J10: 0 | K10: 0 | L10: 0 | M10: 0 | N10: 0 | O10: 0 | P10: 0 | Q10: 0 | R10: 0 | S10: 0 | T10: 0 | U10: 0
A11: 1 | B11: 1 | C11: BASSETT, John | D11: 0 | E11: 0 | F11: 0 | G11: 0 | H11: 0 | I11: 21 | J11: 23 | K11: 0 | L11: 25 | M11: 0 | N11: 28 | O11: 27 | P11: 0 | Q11: 0 | R11: 26 | S11: 0 | T11: 0 | U11: 0
A12: 1 | B12: 1 | C12: GREEN, Mike | D12: 0 | E12: 0 | F12: 0 | G12: 0 | H12: 0 | I12: 0 | J12: 26 | K12: 0 | L12: 0 | M12: 0 | N12: 0 | O12: 0 | P12: 0 | Q12: 0 | R12: 0 | S12: 0 | T12: 0 | U12: 0
A13: 1 | B13: 1 | C13: HARLEY-GRIFFITHS, Mike | D13: 0 | E13: 24 | F13: 24 | G13: 23 | H13: 20 | I13: 18 | J13: 21 | K13: 0 | L13: 0 | M13: 26 | N13: 0 | O13: 0 | P13: 0 | Q13: 0 | R13: 0 | S13: 0 | T13: 0 | U13: 0
A14: 1 | B14: 1 | C14: BREALEY, Steve | D14: 0 | E14: 0 | F14: 0 | G14: 0 | H14: 0 | I14: 0 | J14: 28 | K14: 27 | L14: 28 | M14: 0 | N14: 0 | O14: 0 | P14: 0 | Q14: 0 | R14: 0 | S14: 28 | T14: 0 | U14: 0
A15: 1 | B15: 1 | C15: MCALISTER, Dave | D15: 0 | E15: 26 | F15: 23 | G15: 25 | H15: 22 | I15: 19 | J15: 22 | K15: 23 | L15: 24 | M15: 0 | N15: 0 | O15: 26 | P15: 0 | Q15: 25 | R15: 24 | S15: 23 | T15: 0 | U15: 0
A16: 1 | B16: 1 | C16: CUTHBERT, Phil | D16: 27 | E16: 0 | F16: 28 | G16: 28 | H16: 0 | I16: 0 | J16: 24 | K16: 0 | L16: 0 | M16: 28 | N16: 0 | O16: 28 | P16: 0 | Q16: 0 | R16: 0 | S16: 25 | T16: 0 | U16: 0
A17: 1 | B17: 1 | C17: MCARDLE, Connor | D17: 0 | E17: 0 | F17: 0 | G17: 0 | H17: 0 | I17: 0 | J17: 27 | K17: 0 | L17: 0 | M17: 0 | N17: 0 | O17: 29 | P17: 0 | Q17: 0 | R17: 0 | S17: 0 | T17: 0 | U17: 0
A18: 1 | B18: 1 | C18: BARBAT, Tony | D18: 26 | E18: 28 | F18: 27 | G18: 27 | H18: 25 | I18: 24 | J18: 25 | K18: 25 | L18: 26 | M18: 27 | N18: 0 | O18: 0 | P18: 0 | Q18: 28 | R18: 27 | S18: 26 | T18: 0 | U18: 0
A19: 1 | B19: 1 | C19: BIRD, Phil | D19: 24 | E19: 25 | F19: 25 | G19: 24 | H19: 21 | I19: 0 | J19: 0 | K19: 0 | L19: 0 | M19: 0 | N19: 0 | O19: 0 | P19: 0 | Q19: 0 | R19: 0 | S19: 0 | T19: 0 | U19: 0
A20: 1 | B20: 1 | C20: HALL, Kevin | D20: 0 | E20: 0 | F20: 0 | G20: 0 | H20: 24 | I20: 23 | J20: 0 | K20: 0 | L20: 0 | M20: 0 | N20: 0 | O20: 0 | P20: 0 | Q20: 27 | R20: 0 | S20: 0 | T20: 0 | U20: 0
A21: 1 | B21: 0 | C21: HAMPSHIRE, William | D21: 26 | E21: 27 | F21: 26 | G21: 27 | H21: 0 | I21: 0 | J21: 0 | K21: 0 | L21: 0 | M21: 0 | N21: 0 | O21: 0 | P21: 0 | Q21: 0 | R21: 0 | S21: 0 | T21: 0 | U21: 0
A22: 1 | B22: 0 | C22: PLESTED, Tim | D22: 0 | E22: 13 | F22: 17 | G22: 0 | H22: 11 | I22: 0 | J22: 0 | K22: 0 | L22: 0 | M22: 0 | N22: 0 | O22: 0 | P22: 0 | Q22: 0 | R22: 0 | S22: 0 | T22: 0 | U22: 0
A23: 1 | B23: 0 | C23: SHARP, Ben | D23: 0 | E23: 0 | F23: 0 | G23: 0 | H23: 20 | I23: 20 | J23: 0 | K23: 0 | L23: 0 | M23: 0 | N23: 0 | O23: 0 | P23: 0 | Q23: 0 | R23: 0 | S23: 23 | T23: 0 | U23: 0
A24: 1 | B24: 0 | C24: HAMPSON, Aiden | D24: 0 | E24: 0 | F24: 0 | G24: 0 | H24: 13 | I24: 0 | J24: 0 | K24: 0 | L24: 0 | M24: 0 | N24: 0 | O24: 0 | P24: 0 | Q24: 0 | R24: 0 | S24: 0 | T24: 0 | U24: 0
A25: 1 | B25: 0 | C25: STOCKER, Ken | D25: 8 | E25: 0 | F25: 0 | G25: 0 | H25: 6 | I25: 10 | J25: 0 | K25: 0 | L25: 0 | M25: 0 | N25: 0 | O25: 0 | P25: 0 | Q25: 0 | R25: 0 | S25: 0 | T25: 0 | U25: 0
A26: 1 | B26: 0 | C26: JONES, Mike T | D26: 0 | E26: 0 | F26: 0 | G26: 0 | H26: 0 | I26: 28 | J26: 0 | K26: 0 | L26: 0 | M26: 0 | N26: 0 | O26: 0 | P26: 0 | Q26: 0 | R26: 0 | S26: 0 | T26: 0 | U26: 0
A27: 1 | B27: 0 | C27: SEAL, Brian | D27: 16 | E27: 22 | F27: 22 | G27: 22 | H27: 22 | I27: 19 | J27: 0 | K27: 22 | L27: 0 | M27: 0 | N27: 28 | O27: 0 | P27: 0 | Q27: 0 | R27: 0 | S27: 0 | T27: 0 | U27: 0
A28: 1 | B28: 0 | C28: POUSTIE, Mark | D28: 0 | E28: 0 | F28: 0 | G28: 0 | H28: 24 | I28: 23 | J28: 30 | K28: 0 | L28: 28 | M28: 0 | N28: 0 | O28: 0 | P28: 0 | Q28: 0 | R28: 0 | S28: 0 | T28: 0 | U28: 0
A29: 1 | B29: 0 | C29: DYSON, Mike | D29: 21 | E29: 25 | F29: 27 | G29: 28 | H29: 25 | I29: 21 | J29: 0 | K29: 0 | L29: 0 | M29: 0 | N29: 29 | O29: 0 | P29: 0 | Q29: 0 | R29: 0 | S29: 0 | T29: 0 | U29: 0
A30: 1 | B30: 0 | C30: GREENWOOD, Ryan | D30: 30 | E30: 0 | F30: 30 | G30: 0 | H30: 0 | I30: 0 | J30: 0 | K30: 0 | L30: 0 | M30: 0 | N30: 0 | O30: 0 | P30: 0 | Q30: 0 | R30: 0 | S30: 0 | T30: 0 | U30: 0
A31: 1 | B31: 0 | C31: WATSON, Luke | D31: 0 | E31: 0 | F31: 0 | G31: 0 | H31: 0 | I31: 0 | J31: 0 | K31: 0 | L31: 0 | M31: 0 | N31: 0 | O31: 0 | P31: 0 | Q31: 0 | R31: 0 | S31: 29 | T31: 0 | U31: 0
A32: 1 | B32: 0 | C32: ROUGHLEY, Andrew | D32: 22 | E32: 21 | F32: 21 | G32: 21 | H32: 0 | I32: 0 | J32: 0 | K32: 0 | L32: 0 | M32: 0 | N32: 0 | O32: 0 | P32: 0 | Q32: 0 | R32: 0 | S32: 0 | T32: 0 | U32: 0
A33: 1 | B33: 0 | C33: SUMMERFIELD, Leon | D33: 15 | E33: 15 | F33: 16 | G33: 0 | H33: 15 | I33: 0 | J33: 0 | K33: 0 | L33: 0 | M33: 0 | N33: 26 | O33: 0 | P33: 0 | Q33: 0 | R33: 0 | S33: 0 | T33: 0 | U33: 0
A34: 1 | B34: 0 | C34: MITCHELL, Rob | D34: 0 | E34: 0 | F34: 0 | G34: 0 | H34: 0 | I34: 0 | J34: 0 | K34: 0 | L34: 0 | M34: 0 | N34: 0 | O34: 0 | P34: 0 | Q34: 26 | R34: 0 | S34: 0 | T34: 0 | U34: 0
A35: 1 | B35: 0 | C35: JOHNSTONE, Paul | D35: 24 | E35: 23 | F35: 25 | G35: 24 | H35: 0 | I35: 22 | J35: 0 | K35: 0 | L35: 0 | M35: 0 | N35: 0 | O35: 0 | P35: 0 | Q35: 0 | R35: 0 | S35: 0 | T35: 0 | U35: 0
A36: 1 | B36: 0 | C36: HAMPSHIRE, Luke | D36: 29 | E36: 30 | F36: 0 | G36: 30 | H36: 0 | I36: 0 | J36: 0 | K36: 0 | L36: 0 | M36: 0 | N36: 0 | O36: 0 | P36: 0 | Q36: 0 | R36: 0 | S36: 0 | T36: 0 | U36: 0
A37: 1 | B37: 0 | C37: MCARDLE, Derek | D37: 0 | E37: 7 | F37: 0 | G37: 0 | H37: 14 | I37: 17 | J37: 29 | K37: 23 | L37: 0 | M37: 0 | N37: 0 | O37: 0 | P37: 0 | Q37: 0 | R37: 0 | S37: 0 | T37: 0 | U37: 0
A38: 1 | B38: 0 | C38: THOMAS, Dave | D38: 0 | E38: 0 | F38: 0 | G38: 0 | H38: 7 | I38: 0 | J38: 0 | K38: 0 | L38: 0 | M38: 0 | N38: 0 | O38: 0 | P38: 0 | Q38: 0 | R38: 0 | S38: 0 | T38: 0 | U38: 0
A39: 1 | B39: 0 | C39: ROBSON, Michael | D39: 28 | E39: 29 | F39: 29 | G39: 0 | H39: 28 | I39: 26 | J39: 0 | K39: 28 | L39: 0 | M39: 0 | N39: 0 | O39: 0 | P39: 0 | Q39: 0 | R39: 29 | S39: 30 | T39: 0 | U39: 0
A40: 1 | B40: 0 | C40: CONNELL, Martin | D40: 14 | E40: 14 | F40: 0 | G40: 0 | H40: 0 | I40: 0 | J40: 0 | K40: 0 | L40: 0 | M40: 0 | N40: 0 | O40: 0 | P40: 0 | Q40: 0 | R40: 0 | S40: 0 | T40: 0 | U40: 0
A41: 1 | B41: 0 | C41: CLARK, Ray | D41: 0 | E41: 0 | F41: 0 | G41: 0 | H41: 29 | I41: 29 | J41: 0 | K41: 0 | L41: 0 | M41: 0 | N41: 0 | O41: 0 | P41: 0 | Q41: 29 | R41: 0 | S41: 0 | T41: 0 | U41: 0
A42: 1 | B42: 0 | C42: COLE, Steve | D42: 0 | E42: 0 | F42: 12 | G42: 17 | H42: 12 | I42: 15 | J42: 0 | K42: 0 | L42: 0 | M42: 0 | N42: 0 | O42: 0 | P42: 0 | Q42: 0 | R42: 25 | S42: 0 | T42: 0 | U42: 0
A43: 1 | B43: 0 | C43: BARHAM, Pete | D43: 17 | E43: 17 | F43: 19 | G43: 19 | H43: 17 | I43: 16 | J43: 0 | K43: 24 | L43: 26 | M43: 29 | N43: 27 | O43: 0 | P43: 0 | Q43: 0 | R43: 26 | S43: 25 | T43: 0 | U43: 0
A44: 1 | B44: 0 | C44: YEM, Alex | D44: 0 | E44: 0 | F44: 0 | G44: 0 | H44: 26 | I44: 0 | J44: 0 | K44: 26 | L44: 0 | M44: 0 | N44: 0 | O44: 0 | P44: 0 | Q44: 0 | R44: 0 | S44: 0 | T44: 0 | U44: 0
A45: 1 | B45: 0 | C45: HOGG, John | D45: 0 | E45: 0 | F45: 0 | G45: 18 | H45: 0 | I45: 0 | J45: 0 | K45: 0 | L45: 0 | M45: 0 | N45: 0 | O45: 0 | P45: 0 | Q45: 0 | R45: 0 | S45: 0 | T45: 0 | U45: 0
A46: 1 | B46: 0 | C46: SALES, Sean | D46: 0 | E46: 0 | F46: 0 | G46: 0 | H46: 0 | I46: 0 | J46: 0 | K46: 0 | L46: 0 | M46: 0 | N46: 0 | O46: 0 | P46: 0 | Q46: 0 | R46: 24 | S46: 22 | T46: 0 | U46: 0
A47: 1 | B47: 0 | C47: YANG, Jack | D47: 0 | E47: 0 | F47: 0 | G47: 0 | H47: 18 | I47: 0 | J47: 0 | K47: 0 | L47: 0 | M47: 0 | N47: 0 | O47: 0 | P47: 0 | Q47: 0 | R47: 0 | S47: 27 | T47: 0 | U47: 0
A48: 1 | B48: 0 | C48: COSGROVE, Steve | D48: 23 | E48: 26 | F48: 28 | G48: 29 | H48: 27 | I48: 25 | J48: 0 | K48: 27 | L48: 29 | M48: 30 | N48: 30 | O48: 30 | P48: 0 | Q48: 28 | R48: 28 | S48: 28 | T48: 0 | U48: 0
A49: 1 | B49: 0 | C49: WILD, Joshua | D49: 0 | E49: 0 | F49: 0 | G49: 0 | H49: 16 | I49: 0 | J49: 0 | K49: 0 | L49: 0 | M49: 0 | N49: 0 | O49: 0 | P49: 0 | Q49: 0 | R49: 0 | S49: 0 | T49: 0 | U49: 0
A50: 1 | B50: 0 | C50: FOSTER, Stewart | D50: 10 | E50: 8 | F50: 14 | G50: 14 | H50: 9 | I50: 0 | J50: 0 | K50: 0 | L50: 25 | M50: 0 | N50: 0 | O50: 0 | P50: 0 | Q50: 25 | R50: 23 | S50: 20 | T50: 0 | U50: 0
A51: 1 | B51: 0 | C51: GIBBONS, Neil | D51: 13 | E51: 11 | F51: 0 | G51: 16 | H51: 10 | I51: 14 | J51: 0 | K51: 0 | L51: 0 | M51: 0 | N51: 0 | O51: 0 | P51: 0 | Q51: 0 | R51: 0 | S51: 0 | T51: 0 | U51: 0
A52: 1 | B52: 0 | C52: GOUGH, Dermot | D52: 25 | E52: 24 | F52: 24 | G52: 26 | H52: 0 | I52: 0 | J52: 0 | K52: 0 | L52: 0 | M52: 0 | N52: 0 | O52: 0 | P52: 0 | Q52: 0 | R52: 0 | S52: 0 | T52: 0 | U52: 0
A53: 1 | B53: 0 | C53: NOBLE, Kenneth | D53: 0 | E53: 9 | F53: 0 | G53: 0 | H53: 0 | I53: 0 | J53: 0 | K53: 0 | L53: 0 | M53: 0 | N53: 0 | O53: 0 | P53: 0 | Q53: 0 | R53: 0 | S53: 0 | T53: 0 | U53: 0
A54: 1 | B54: 0 | C54: CLARKE, Steve | D54: 0 | E54: 19 | F54: 0 | G54: 0 | H54: 0 | I54: 0 | J54: 0 | K54: 0 | L54: 0 | M54: 0 | N54: 0 | O54: 0 | P54: 0 | Q54: 0 | R54: 0 | S54: 0 | T54: 0 | U54: 0
A55: 1 | B55: 0 | C55: BACKINSELL, Jim | D55: 0 | E55: 0 | F55: 0 | G55: 0 | H55: 0 | I55: 0 | J55: 0 | K55: 0 | L55: 0 | M55: 0 | N55: 0 | O55: 0 | P55: 0 | Q55: 0 | R55: 0 | S55: 24 | T55: 0 | U55: 0
A56: 1 | B56: 0 | C56: ALI, Abir | D56: 0 | E56: 0 | F56: 0 | G56: 0 | H56: 0 | I56: 11 | J56: 0 | K56: 0 | L56: 0 | M56: 0 | N56: 0 | O56: 0 | P56: 0 | Q56: 0 | R56: 0 | S56: 19 | T56: 0 | U56: 0
A57: 1 | B57: 0 | C57: GOODENOUGH, Mike | D57: 12 | E57: 10 | F57: 15 | G57: 15 | H57: 0 | I57: 0 | J57: 0 | K57: 0 | L57: 0 | M57: 0 | N57: 0 | O57: 0 | P57: 0 | Q57: 0 | R57: 0 | S57: 0 | T57: 0 | U57: 0
A58: 1 | B58: 0 | C58: PERRY, Robert | D58: 0 | E58: 0 | F58: 0 | G58: 0 | H58: 0 | I58: 13 | J58: 0 | K58: 0 | L58: 0 | M58: 0 | N58: 0 | O58: 0 | P58: 0 | Q58: 0 | R58: 0 | S58: 0 | T58: 0 | U58: 0
A59: 1 | B59: 0 | C59: WADE, David | D59: 19 | E59: 16 | F59: 20 | G59: 0 | H59: 0 | I59: 0 | J59: 0 | K59: 0 | L59: 0 | M59: 0 | N59: 0 | O59: 0 | P59: 0 | Q59: 0 | R59: 0 | S59: 0 | T59: 0 | U59: 0
A60: 1 | B60: 0 | C60: FAYLE, Joseph | D60: 27 | E60: 28 | F60: 0 | G60: 25 | H60: 23 | I60: 24 | J60: 0 | K60: 0 | L60: 0 | M60: 0 | N60: 0 | O60: 0 | P60: 0 | Q60: 27 | R60: 0 | S60: 0 | T60: 0 | U60: 0
A61: 1 | B61: 0 | C61: RAE, Nick | D61: 9 | E61: 6 | F61: 0 | G61: 12 | H61: 0 | I61: 0 | J61: 0 | K61: 0 | L61: 0 | M61: 0 | N61: 0 | O61: 0 | P61: 0 | Q61: 0 | R61: 0 | S61: 0 | T61: 0 | U61: 0
A62: 1 | B62: 0 | C62: GORMAN, Louis | D62: 0 | E62: 0 | F62: 0 | G62: 0 | H62: 0 | I62: 27 | J62: 0 | K62: 29 | L62: 30 | M62: 0 | N62: 0 | O62: 0 | P62: 0 | Q62: 0 | R62: 0 | S62: 0 | T62: 0 | U62: 0
A63: 1 | B63: 0 | C63: BROMLEY, Andrew | D63: 0 | E63: 0 | F63: 0 | G63: 0 | H63: 30 | I63: 30 | J63: 0 | K63: 30 | L63: 0 | M63: 0 | N63: 0 | O63: 0 | P63: 0 | Q63: 30 | R63: 30 | S63: 0 | T63: 0 | U63: 0
A64: 1 | B64: 0 | C64: WARREN, Dominic | D64: 18 | E64: 18 | F64: 18 | G64: 20 | H64: 19 | I64: 0 | J64: 0 | K64: 0 | L64: 0 | M64: 0 | N64: 0 | O64: 0 | P64: 0 | Q64: 0 | R64: 0 | S64: 0 | T64: 0 | U64: 0
A65: 1 | B65: 0 | C65: WHITWORTH, Rab | D65: 20 | E65: 20 | F65: 23 | G65: 23 | H65: 21 | I65: 18 | J65: 0 | K65: 25 | L65: 27 | M65: 0 | N65: 0 | O65: 0 | P65: 0 | Q65: 0 | R65: 27 | S65: 26 | T65: 0 | U65: 0
A66: 1 | B66: 0 | C66: HOLMES, Tony | D66: 11 | E66: 12 | F66: 13 | G66: 13 | H66: 8 | I66: 12 | J66: 0 | K66: 21 | L66: 0 | M66: 0 | N66: 0 | O66: 0 | P66: 0 | Q66: 0 | R66: 0 | S66: 21 | T66: 0 | U66: 0
A67: 2 | B67: 0 | C67: GREENWOOD, Kirsty | D67: 23 | E67: 21 | F67: 23 | G67: 23 | H67: 18 | I67: 0 | J67: 24 | K67: 0 | L67: 20 | M67: 25 | N67: 21 | O67: 24 | P67: 0 | Q67: 0 | R67: 22 | S67: 24 | T67: 0 | U67: 0
A68: 2 | B68: 0 | C68: POLAND, Louise | D68: 0 | E68: 0 | F68: 19 | G68: 19 | H68: 0 | I68: 0 | J68: 0 | K68: 0 | L68: 0 | M68: 0 | N68: 0 | O68: 0 | P68: 0 | Q68: 0 | R68: 0 | S68: 0 | T68: 0 | U68: 0
A69: 2 | B69: 0 | C69: CUTHBERT, Isabella | D69: 26 | E69: 27 | F69: 26 | G69: 27 | H69: 0 | I69: 24 | J69: 0 | K69: 0 | L69: 0 | M69: 0 | N69: 0 | O69: 0 | P69: 0 | Q69: 0 | R69: 0 | S69: 23 | T69: 0 | U69: 0
A70: 2 | B70: 0 | C70: RYAN, Jenny | D70: 0 | E70: 0 | F70: 0 | G70: 0 | H70: 0 | I70: 0 | J70: 0 | K70: 0 | L70: 0 | M70: 0 | N70: 23 | O70: 0 | P70: 0 | Q70: 25 | R70: 24 | S70: 22 | T70: 0 | U70: 0
A71: 2 | B71: 0 | C71: RILEY, Sandra | D71: 13 | E71: 0 | F71: 0 | G71: 14 | H71: 16 | I71: 0 | J71: 0 | K71: 0 | L71: 0 | M71: 0 | N71: 0 | O71: 0 | P71: 0 | Q71: 0 | R71: 12 | S71: 0 | T71: 0 | U71: 0
A72: 2 | B72: 0 | C72: BREALEY, Jane | D72: 0 | E72: 0 | F72: 0 | G72: 25 | H72: 0 | I72: 0 | J72: 25 | K72: 23 | L72: 23 | M72: 0 | N72: 0 | O72: 0 | P72: 0 | Q72: 0 | R72: 0 | S72: 25 | T72: 0 | U72: 0
A73: 2 | B73: 0 | C73: CRISP, Zoe | D73: 16 | E73: 0 | F73: 17 | G73: 0 | H73: 0 | I73: 22 | J73: 0 | K73: 0 | L73: 14 | M73: 0 | N73: 0 | O73: 0 | P73: 0 | Q73: 0 | R73: 17 | S73: 19 | T73: 0 | U73: 0
A74: 2 | B74: 0 | C74: ANDREWS, Katherine | D74: 10 | E74: 9 | F74: 12 | G74: 0 | H74: 20 | I74: 13 | J74: 20 | K74: 0 | L74: 0 | M74: 23 | N74: 12 | O74: 19 | P74: 0 | Q74: 23 | R74: 11 | S74: 21 | T74: 0 | U74: 0
A75: 2 | B75: 0 | C75: GARTLAND, Moira | D75: 0 | E75: 19 | F75: 0 | G75: 0 | H75: 0 | I75: 0 | J75: 22 | K75: 0 | L75: 18 | M75: 0 | N75: 0 | O75: 0 | P75: 0 | Q75: 0 | R75: 0 | S75: 0 | T75: 0 | U75: 0
A76: 2 | B76: 0 | C76: FARLAM, Faye | D76: 0 | E76: 0 | F76: 0 | G76: 0 | H76: 0 | I76: 17 | J76: 0 | K76: 0 | L76: 0 | M76: 0 | N76: 0 | O76: 0 | P76: 0 | Q76: 21 | R76: 20 | S76: 20 | T76: 0 | U76: 0
A77: 2 | B77: 0 | C77: COSGROVE, Susie | D77: 0 | E77: 0 | F77: 0 | G77: 0 | H77: 14 | I77: 16 | J77: 0 | K77: 0 | L77: 0 | M77: 0 | N77: 0 | O77: 0 | P77: 0 | Q77: 16 | R77: 15 | S77: 16 | T77: 0 | U77: 0
A78: 2 | B78: 0 | C78: COWDRAY, Kat | D78: 0 | E78: 0 | F78: 0 | G78: 0 | H78: 26 | I78: 0 | J78: 26 | K78: 0 | L78: 22 | M78: 26 | N78: 24 | O78: 26 | P78: 0 | Q78: 27 | R78: 25 | S78: 27 | T78: 0 | U78: 0
A79: 2 | B79: 0 | C79: TURNER, Yvette | D79: 0 | E79: 0 | F79: 0 | G79: 0 | H79: 15 | I79: 18 | J79: 0 | K79: 0 | L79: 0 | M79: 0 | N79: 0 | O79: 0 | P79: 0 | Q79: 0 | R79: 10 | S79: 11 | T79: 0 | U79: 0
A80: 2 | B80: 0 | C80: HUNTER, Maria | D80: 22 | E80: 22 | F80: 0 | G80: 22 | H80: 22 | I80: 0 | J80: 0 | K80: 22 | L80: 0 | M80: 0 | N80: 18 | O80: 25 | P80: 0 | Q80: 22 | R80: 21 | S80: 0 | T80: 0 | U80: 0
A81: 2 | B81: 0 | C81: CUCKSEY, Lesley-Anne | D81: 0 | E81: 16 | F81: 18 | G81: 0 | H81: 0 | I81: 20 | J81: 0 | K81: 20 | L81: 17 | M81: 21 | N81: 19 | O81: 22 | P81: 0 | Q81: 17 | R81: 0 | S81: 13 | T81: 0 | U81: 0
A82: 2 | B82: 0 | C82: MCNICHOLAS, Hayley | D82: 9 | E82: 10 | F82: 13 | G82: 11 | H82: 0 | I82: 14 | J82: 0 | K82: 0 | L82: 0 | M82: 0 | N82: 0 | O82: 0 | P82: 0 | Q82: 0 | R82: 0 | S82: 0 | T82: 0 | U82: 0
A83: 2 | B83: 0 | C83: DROSZCZ, Kathleen | D83: 0 | E83: 23 | F83: 0 | G83: 12 | H83: 0 | I83: 0 | J83: 0 | K83: 0 | L83: 0 | M83: 0 | N83: 0 | O83: 0 | P83: 0 | Q83: 0 | R83: 0 | S83: 0 | T83: 0 | U83: 0
A84: 2 | B84: 0 | C84: RICE, Kate | D84: 0 | E84: 0 | F84: 0 | G84: 0 | H84: 0 | I84: 0 | J84: 0 | K84: 0 | L84: 0 | M84: 0 | N84: 0 | O84: 0 | P84: 0 | Q84: 0 | R84: 13 | S84: 10 | T84: 0 | U84: 0
A85: 2 | B85: 0 | C85: AINSLIE, Sharron | D85: 0 | E85: 25 | F85: 0 | G85: 0 | H85: 0 | I85: 0 | J85: 23 | K85: 0 | L85: 21 | M85: 0 | N85: 20 | O85: 0 | P85: 0 | Q85: 0 | R85: 0 | S85: 0 | T85: 0 | U85: 0
A86: 2 | B86: 0 | C86: REES, Mary | D86: 21 | E86: 0 | F86: 24 | G86: 21 | H86: 21 | I86: 23 | J86: 0 | K86: 0 | L86: 19 | M86: 24 | N86: 0 | O86: 23 | P86: 0 | Q86: 19 | R86: 18 | S86: 15 | T86: 0 | U86: 0
A87: 2 | B87: 0 | C87: DAVIES, Nicci | D87: 15 | E87: 14 | F87: 16 | G87: 16 | H87: 12 | I87: 0 | J87: 0 | K87: 0 | L87: 0 | M87: 0 | N87: 0 | O87: 0 | P87: 0 | Q87: 0 | R87: 0 | S87: 0 | T87: 0 | U87: 0
A88: 2 | B88: 0 | C88: SAUNDERS, Rachel | D88: 17 | E88: 0 | F88: 20 | G88: 0 | H88: 0 | I88: 0 | J88: 0 | K88: 0 | L88: 0 | M88: 0 | N88: 0 | O88: 0 | P88: 0 | Q88: 0 | R88: 0 | S88: 0 | T88: 0 | U88: 0
A89: 2 | B89: 0 | C89: BARBAT, Julie | D89: 19 | E89: 20 | F89: 0 | G89: 20 | H89: 19 | I89: 0 | J89: 0 | K89: 0 | L89: 0 | M89: 0 | N89: 0 | O89: 0 | P89: 0 | Q89: 20 | R89: 19 | S89: 18 | T89: 0 | U89: 0
A90: 2 | B90: 0 | C90: HOLT, Sallie | D90: 0 | E90: 0 | F90: 0 | G90: 0 | H90: 0 | I90: 0 | J90: 0 | K90: 29 | L90: 0 | M90: 0 | N90: 0 | O90: 0 | P90: 0 | Q90: 0 | R90: 0 | S90: 0 | T90: 0 | U90: 0
A91: 2 | B91: 0 | C91: LAMONT, Sharon | D91: 18 | E91: 17 | F91: 21 | G91: 17 | H91: 0 | I91: 19 | J91: 21 | K91: 21 | L91: 16 | M91: 22 | N91: 17 | O91: 21 | P91: 0 | Q91: 18 | R91: 16 | S91: 17 | T91: 0 | U91: 0
A92: 2 | B92: 0 | C92: ENGLE, Alison | D92: 20 | E92: 18 | F92: 22 | G92: 18 | H92: 17 | I92: 21 | J92: 0 | K92: 0 | L92: 15 | M92: 0 | N92: 15 | O92: 0 | P92: 0 | Q92: 0 | R92: 0 | S92: 0 | T92: 0 | U92: 0
A93: 2 | B93: 0 | C93: MCCONNELL, Vicky | D93: 0 | E93: 0 | F93: 0 | G93: 0 | H93: 24 | I93: 0 | J93: 0 | K93: 0 | L93: 0 | M93: 0 | N93: 28 | O93: 0 | P93: 0 | Q93: 0 | R93: 0 | S93: 0 | T93: 0 | U93: 0
A94: 2 | B94: 0 | C94: CUTHBERT, Caet | D94: 14 | E94: 11 | F94: 14 | G94: 15 | H94: 0 | I94: 15 | J94: 19 | K94: 0 | L94: 13 | M94: 20 | N94: 14 | O94: 20 | P94: 0 | Q94: 0 | R94: 0 | S94: 9 | T94: 0 | U94: 0
A95: 2 | B95: 0 | C95: BLACKLOCK, Becky | D95: 30 | E95: 30 | F95: 30 | G95: 30 | H95: 30 | I95: 30 | J95: 30 | K95: 30 | L95: 30 | M95: 0 | N95: 30 | O95: 0 | P95: 0 | Q95: 30 | R95: 30 | S95: 30 | T95: 0 | U95: 0
A96: 2 | B96: 0 | C96: ALTY, Michelle | D96: 0 | E96: 0 | F96: 0 | G96: 0 | H96: 27 | I96: 26 | J96: 27 | K96: 27 | L96: 26 | M96: 30 | N96: 27 | O96: 30 | P96: 0 | Q96: 29 | R96: 29 | S96: 28 | T96: 0 | U96: 0
A97: 2 | B97: 0 | C97: KENNY, Anna | D97: 0 | E97: 0 | F97: 0 | G97: 0 | H97: 0 | I97: 0 | J97: 0 | K97: 24 | L97: 25 | M97: 27 | N97: 26 | O97: 28 | P97: 0 | Q97: 28 | R97: 27 | S97: 0 | T97: 0 | U97: 0
A98: 2 | B98: 0 | C98: ELLISON, Sandra | D98: 12 | E98: 13 | F98: 0 | G98: 0 | H98: 0 | I98: 0 | J98: 0 | K98: 0 | L98: 0 | M98: 0 | N98: 0 | O98: 0 | P98: 0 | Q98: 0 | R98: 0 | S98: 0 | T98: 0 | U98: 0
A99: 2 | B99: 0 | C99: STANSFIELD, Helen-Anne | D99: 25 | E99: 0 | F99: 25 | G99: 26 | H99: 25 | I99: 25 | J99: 28 | K99: 25 | L99: 24 | M99: 0 | N99: 0 | O99: 0 | P99: 0 | Q99: 24 | R99: 0 | S99: 26 | T99: 0 | U99: 0
A100: 2 | B100: 0 | C100: MCARD, Jan | D100: 27 | E100: 29 | F100: 29 | G100: 28 | H100: 29 | I100: 29 | J100: 0 | K100: 28 | L100: 27 | M100: 29 | N100: 0 | O100: 29 | P100: 0 | Q100: 0 | R100: 28 | S100: 29 | T100: 0 | U100: 0
A101: 2 | B101: 0 | C101: CHAPMAN, Nicci | D101: 0 | E101: 15 | F101: 0 | G101: 0 | H101: 13 | I101: 0 | J101: 0 | K101: 0 | L101: 11 | M101: 0 | N101: 13 | O101: 18 | P101: 0 | Q101: 0 | R101: 0 | S101: 0 | T101: 0 | U101: 0
A102: 2 | B102: 0 | C102: RYAN, Kate | D102: 0 | E102: 0 | F102: 0 | G102: 0 | H102: 0 | I102: 0 | J102: 0 | K102: 0 | L102: 0 | M102: 0 | N102: 22 | O102: 0 | P102: 0 | Q102: 0 | R102: 23 | S102: 0 | T102: 0 | U102: 0
A103: 2 | B103: 0 | C103: REYNOLDS, Lydia | D103: 0 | E103: 0 | F103: 0 | G103: 0 | H103: 0 | I103: 0 | J103: 0 | K103: 0 | L103: 0 | M103: 0 | N103: 0 | O103: 0 | P103: 0 | Q103: 0 | R103: 0 | S103: 14 | T103: 0 | U103: 0
A104: 2 | B104: 0 | C104: REYNOLDS, Sue | D104: 28 | E104: 26 | F104: 27 | G104: 0 | H104: 28 | I104: 27 | J104: 0 | K104: 26 | L104: 28 | M104: 28 | N104: 25 | O104: 27 | P104: 0 | Q104: 26 | R104: 26 | S104: 0 | T104: 0 | U104: 0
A105: 2 | B105: 0 | C105: MAGEE, Mary | D105: 11 | E105: 12 | F105: 15 | G105: 13 | H105: 0 | I105: 0 | J105: 0 | K105: 0 | L105: 12 | M105: 0 | N105: 16 | O105: 0 | P105: 0 | Q105: 0 | R105: 14 | S105: 12 | T105: 0 | U105: 0
A106: 2 | B106: 0 | C106: THOMPSON, Joniece | D106: 24 | E106: 24 | F106: 0 | G106: 24 | H106: 23 | I106: 0 | J106: 0 | K106: 0 | L106: 0 | M106: 0 | N106: 0 | O106: 0 | P106: 0 | Q106: 0 | R106: 0 | S106: 0 | T106: 0 | U106: 0
A107: 2 | B107: 0 | C107: OPARA, Elaine | D107: 29 | E107: 28 | F107: 28 | G107: 29 | H107: 0 | I107: 28 | J107: 29 | K107: 0 | L107: 29 | M107: 0 | N107: 29 | O107: 0 | P107: 0 | Q107: 0 | R107: 0 | S107: 0 | T107: 0 | U107: 0

Sheet SortBest
A1: BODEN, Joe | B1: 30 | C1: 30 | D1: 30 | E1: 30 | F1: 30 | G1: 0 | H1: 0 | I1: 0 | J1: 0 | K1: 0 | L1: 0 | M1: 0 | N1: 0 | O1: 0 | P1: 0 | Q1: 0 | R1: 0 | S1: 0 | T1: =SUM(B1:L1) -> 150
A2: JONES, Christopher | B2: 30 | C2: 29 | D2: 28 | E2: 28 | F2: 27 | G2: 26 | H2: 0 | I2: 0 | J2: 0 | K2: 0 | L2: 0 | M2: 0 | N2: 0 | O2: 0 | P2: 0 | Q2: 0 | R2: 0 | S2: 0 | T2: =SUM(B2:L2) -> 168
A3: CHADWICK, Oliver | B3: 30 | C3: 30 | D3: 30 | E3: 30 | F3: 30 | G3: 30 | H3: 29 | I3: 29 | J3: 28 | K3: 0 | L3: 0 | M3: 0 | N3: 0 | O3: 0 | P3: 0 | Q3: 0 | R3: 0 | S3: 0 | T3: 266
A4: NORTON, Steve | B4: 27 | C4: 27 | D4: 26 | E4: 26 | F4: 26 | G4: 25 | H4: 25 | I4: 24 | J4: 24 | K4: 23 | L4: 20 | M4: 0 | N4: 0 | O4: 0 | P4: 0 | Q4: 0 | R4: 0 | S4: 0 | T4: 273
A5: WALKER, Jay | B5: 29 | C5: 22 | D5: 0 | E5: 0 | F5: 0 | G5: 0 | H5: 0 | I5: 0 | J5: 0 | K5: 0 | L5: 0 | M5: 0 | N5: 0 | O5: 0 | P5: 0 | Q5: 0 | R5: 0 | S5: 0 | T5: 51
A6: POLAND, Jack | B6: 30 | C6: 29 | D6: 0 | E6: 0 | F6: 0 | G6: 0 | H6: 0 | I6: 0 | J6: 0 | K6: 0 | L6: 0 | M6: 0 | N6: 0 | O6: 0 | P6: 0 | Q6: 0 | R6: 0 | S6: 0 | T6: 59
A7: PEARSE, Rob | B7: 30 | C7: 30 | D7: 29 | E7: 29 | F7: 29 | G7: 29 | H7: 29 | I7: 29 | J7: 29 | K7: 29 | L7: 29 | M7: 28 | N7: 27 | O7: 0 | P7: 0 | Q7: 0 | R7: 0 | S7: 0 | T7: 321
A8: GILLBANKS, Matt | B8: 27 | C8: 27 | D8: 26 | E8: 26 | F8: 25 | G8: 0 | H8: 0 | I8: 0 | J8: 0 | K8: 0 | L8: 0 | M8: 0 | N8: 0 | O8: 0 | P8: 0 | Q8: 0 | R8: 0 | S8: 0 | T8: 131
A9: DABNER, Phil | B9: 28 | C9: 0 | D9: 0 | E9: 0 | F9: 0 | G9: 0 | H9: 0 | I9: 0 | J9: 0 | K9: 0 | L9: 0 | M9: 0 | N9: 0 | O9: 0 | P9: 0 | Q9: 0 | R9: 0 | S9: 0 | T9: 28
A10: BASSETT, John | B10: 28 | C10: 27 | D10: 26 | E10: 25 | F10: 23 | G10: 21 | H10: 0 | I10: 0 | J10: 0 | K10: 0 | L10: 0 | M10: 0 | N10: 0 | O10: 0 | P10: 0 | Q10: 0 | R10: 0 | S10: 0 | T10: 150
A11: GREEN, Mike | B11: 26 | C11: 0 | D11: 0 | E11: 0 | F11: 0 | G11: 0 | H11: 0 | I11: 0 | J11: 0 | K11: 0 | L11: 0 | M11: 0 | N11: 0 | O11: 0 | P11: 0 | Q11: 0 | R11: 0 | S11: 0 | T11: 26
A12: HARLEY-GRIFFITHS, Mike | B12: 26 | C12: 24 | D12: 24 | E12: 23 | F12: 21 | G12: 20 | H12: 18 | I12: 0 | J12: 0 | K12: 0 | L12: 0 | M12: 0 | N12: 0 | O12: 0 | P12: 0 | Q12: 0 | R12: 0 | S12: 0 | T12: 156
A13: BREALEY, Steve | B13: 28 | C13: 28 | D13: 28 | E13: 27 | F13: 0 | G13: 0 | H13: 0 | I13: 0 | J13: 0 | K13: 0 | L13: 0 | M13: 0 | N13: 0 | O13: 0 | P13: 0 | Q13: 0 | R13: 0 | S13: 0 | T13: 111
A14: MCALISTER, Dave | B14: 26 | C14: 26 | D14: 25 | E14: 25 | F14: 24 | G14: 24 | H14: 23 | I14: 23 | J14: 23 | K14: 22 | L14: 22 | M14: 19 | N14: 0 | O14: 0 | P14: 0 | Q14: 0 | R14: 0 | S14: 0 | T14: 263
A15: CUTHBERT, Phil | B15: 28 | C15: 28 | D15: 28 | E15: 28 | F15: 27 | G15: 25 | H15: 24 | I15: 0 | J15: 0 | K15: 0 | L15: 0 | M15: 0 | N15: 0 | O15: 0 | P15: 0 | Q15: 0 | R15: 0 | S15: 0 | T15: 188
A16: MCARDLE, Connor | B16: 29 | C16: 27 | D16: 0 | E16: 0 | F16: 0 | G16: 0 | H16: 0 | I16: 0 | J16: 0 | K16: 0 | L16: 0 | M16: 0 | N16: 0 | O16: 0 | P16: 0 | Q16: 0 | R16: 0 | S16: 0 | T16: 56
A17: BARBAT, Tony | B17: 28 | C17: 28 | D17: 27 | E17: 27 | F17: 27 | G17: 27 | H17: 26 | I17: 26 | J17: 26 | K17: 25 | L17: 25 | M17: 25 | N17: 24 | O17: 0 | P17: 0 | Q17: 0 | R17: 0 | S17: 0 | T17: 292
A18: BIRD, Phil | B18: 25 | C18: 25 | D18: 24 | E18: 24 | F18: 21 | G18: 0 | H18: 0 | I18: 0 | J18: 0 | K18: 0 | L18: 0 | M18: 0 | N18: 0 | O18: 0 | P18: 0 | Q18: 0 | R18: 0 | S18: 0 | T18: 119
A19: HALL, Kevin | B19: 27 | C19: 24 | D19: 23 | E19: 0 | F19: 0 | G19: 0 | H19: 0 | I19: 0 | J19: 0 | K19: 0 | L19: 0 | M19: 0 | N19: 0 | O19: 0 | P19: 0 | Q19: 0 | R19: 0 | S19: 0 | T19: 74
A20: HAMPSHIRE, William | B20: 27 | C20: 27 | D20: 26 | E20: 26 | F20: 0 | G20: 0 | H20: 0 | I20: 0 | J20: 0 | K20: 0 | L20: 0 | M20: 0 | N20: 0 | O20: 0 | P20: 0 | Q20: 0 | R20: 0 | S20: 0 | T20: 106
A21: PLESTED, Tim | B21: 17 | C21: 13 | D21: 11 | E21: 0 | F21: 0 | G21: 0 | H21: 0 | I21: 0 | J21: 0 | K21: 0 | L21: 0 | M21: 0 | N21: 0 | O21: 0 | P21: 0 | Q21: 0 | R21: 0 | S21: 0 | T21: 41
A22: SHARP, Ben | B22: 23 | C22: 20 | D22: 20 | E22: 0 | F22: 0 | G22: 0 | H22: 0 | I22: 0 | J22: 0 | K22: 0 | L22: 0 | M22: 0 | N22: 0 | O22: 0 | P22: 0 | Q22: 0 | R22: 0 | S22: 0 | T22: 63
A23: HAMPSON, Aiden | B23: 13 | C23: 0 | D23: 0 | E23: 0 | F23: 0 | G23: 0 | H23: 0 | I23: 0 | J23: 0 | K23: 0 | L23: 0 | M23: 0 | N23: 0 | O23: 0 | P23: 0 | Q23: 0 | R23: 0 | S23: 0 | T23: 13
A24: STOCKER, Ken | B24: 10 | C24: 8 | D24: 6 | E24: 0 | F24: 0 | G24: 0 | H24: 0 | I24: 0 | J24: 0 | K24: 0 | L24: 0 | M24: 0 | N24: 0 | O24: 0 | P24: 0 | Q24: 0 | R24: 0 | S24: 0 | T24: 24
A25: JONES, Mike T | B25: 28 | C25: 0 | D25: 0 | E25: 0 | F25: 0 | G25: 0 | H25: 0 | I25: 0 | J25: 0 | K25: 0 | L25: 0 | M25: 0 | N25: 0 | O25: 0 | P25: 0 | Q25: 0 | R25: 0 | S25: 0 | T25: 28
A26: SEAL, Brian | B26: 28 | C26: 22 | D26: 22 | E26: 22 | F26: 22 | G26: 22 | H26: 19 | I26: 16 | J26: 0 | K26: 0 | L26: 0 | M26: 0 | N26: 0 | O26: 0 | P26: 0 | Q26: 0 | R26: 0 | S26: 0 | T26: 173
A27: POUSTIE, Mark | B27: 30 | C27: 28 | D27: 24 | E27: 23 | F27: 0 | G27: 0 | H27: 0 | I27: 0 | J27: 0 | K27: 0 | L27: 0 | M27: 0 | N27: 0 | O27: 0 | P27: 0 | Q27: 0 | R27: 0 | S27: 0 | T27: 105
A28: DYSON, Mike | B28: 29 | C28: 28 | D28: 27 | E28: 25 | F28: 25 | G28: 21 | H28: 21 | I28: 0 | J28: 0 | K28: 0 | L28: 0 | M28: 0 | N28: 0 | O28: 0 | P28: 0 | Q28: 0 | R28: 0 | S28: 0 | T28: 176
A29: GREENWOOD, Ryan | B29: 30 | C29: 30 | D29: 0 | E29: 0 | F29: 0 | G29: 0 | H29: 0 | I29: 0 | J29: 0 | K29: 0 | L29: 0 | M29: 0 | N29: 0 | O29: 0 | P29: 0 | Q29: 0 | R29: 0 | S29: 0 | T29: 60
A30: WATSON, Luke | B30: 29 | C30: 0 | D30: 0 | E30: 0 | F30: 0 | G30: 0 | H30: 0 | I30: 0 | J30: 0 | K30: 0 | L30: 0 | M30: 0 | N30: 0 | O30: 0 | P30: 0 | Q30: 0 | R30: 0 | S30: 0 | T30: 29
A31: ROUGHLEY, Andrew | B31: 22 | C31: 21 | D31: 21 | E31: 21 | F31: 0 | G31: 0 | H31: 0 | I31: 0 | J31: 0 | K31: 0 | L31: 0 | M31: 0 | N31: 0 | O31: 0 | P31: 0 | Q31: 0 | R31: 0 | S31: 0 | T31: 85
A32: SUMMERFIELD, Leon | B32: 26 | C32: 16 | D32: 15 | E32: 15 | F32: 15 | G32: 0 | H32: 0 | I32: 0 | J32: 0 | K32: 0 | L32: 0 | M32: 0 | N32: 0 | O32: 0 | P32: 0 | Q32: 0 | R32: 0 | S32: 0 | T32: 87
A33: MITCHELL, Rob | B33: 26 | C33: 0 | D33: 0 | E33: 0 | F33: 0 | G33: 0 | H33: 0 | I33: 0 | J33: 0 | K33: 0 | L33: 0 | M33: 0 | N33: 0 | O33: 0 | P33: 0 | Q33: 0 | R33: 0 | S33: 0 | T33: 26
A34: JOHNSTONE, Paul | B34: 25 | C34: 24 | D34: 24 | E34: 23 | F34: 22 | G34: 0 | H34: 0 | I34: 0 | J34: 0 | K34: 0 | L34: 0 | M34: 0 | N34: 0 | O34: 0 | P34: 0 | Q34: 0 | R34: 0 | S34: 0 | T34: 118
A35: HAMPSHIRE, Luke | B35: 30 | C35: 30 | D35: 29 | E35: 0 | F35: 0 | G35: 0 | H35: 0 | I35: 0 | J35: 0 | K35: 0 | L35: 0 | M35: 0 | N35: 0 | O35: 0 | P35: 0 | Q35: 0 | R35: 0 | S35: 0 | T35: 89
A36: MCARDLE, Derek | B36: 29 | C36: 23 | D36: 17 | E36: 14 | F36: 7 | G36: 0 | H36: 0 | I36: 0 | J36: 0 | K36: 0 | L36: 0 | M36: 0 | N36: 0 | O36: 0 | P36: 0 | Q36: 0 | R36: 0 | S36: 0 | T36: 90
A37: THOMAS, Dave | B37: 7 | C37: 0 | D37: 0 | E37: 0 | F37: 0 | G37: 0 | H37: 0 | I37: 0 | J37: 0 | K37: 0 | L37: 0 | M37: 0 | N37: 0 | O37: 0 | P37: 0 | Q37: 0 | R37: 0 | S37: 0 | T37: 7
A38: ROBSON, Michael | B38: 30 | C38: 29 | D38: 29 | E38: 29 | F38: 28 | G38: 28 | H38: 28 | I38: 26 | J38: 0 | K38: 0 | L38: 0 | M38: 0 | N38: 0 | O38: 0 | P38: 0 | Q38: 0 | R38: 0 | S38: 0 | T38: 227
A39: CONNELL, Martin | B39: 14 | C39: 14 | D39: 0 | E39: 0 | F39: 0 | G39: 0 | H39: 0 | I39: 0 | J39: 0 | K39: 0 | L39: 0 | M39: 0 | N39: 0 | O39: 0 | P39: 0 | Q39: 0 | R39: 0 | S39: 0 | T39: 28
A40: CLARK, Ray | B40: 29 | C40: 29 | D40: 29 | E40: 0 | F40: 0 | G40: 0 | H40: 0 | I40: 0 | J40: 0 | K40: 0 | L40: 0 | M40: 0 | N40: 0 | O40: 0 | P40: 0 | Q40: 0 | R40: 0 | S40: 0 | T40: 87
A41: COLE, Steve | B41: 25 | C41: 17 | D41: 15 | E41: 12 | F41: 12 | G41: 0 | H41: 0 | I41: 0 | J41: 0 | K41: 0 | L41: 0 | M41: 0 | N41: 0 | O41: 0 | P41: 0 | Q41: 0 | R41: 0 | S41: 0 | T41: 81
A42: BARHAM, Pete | B42: 29 | C42: 27 | D42: 26 | E42: 26 | F42: 25 | G42: 24 | H42: 19 | I42: 19 | J42: 17 | K42: 17 | L42: 17 | M42: 16 | N42: 0 | O42: 0 | P42: 0 | Q42: 0 | R42: 0 | S42: 0 | T42: 246
A43: YEM, Alex | B43: 26 | C43: 26 | D43: 0 | E43: 0 | F43: 0 | G43: 0 | H43: 0 | I43: 0 | J43: 0 | K43: 0 | L43: 0 | M43: 0 | N43: 0 | O43: 0 | P43: 0 | Q43: 0 | R43: 0 | S43: 0 | T43: 52
A44: HOGG, John | B44: 18 | C44: 0 | D44: 0 | E44: 0 | F44: 0 | G44: 0 | H44: 0 | I44: 0 | J44: 0 | K44: 0 | L44: 0 | M44: 0 | N44: 0 | O44: 0 | P44: 0 | Q44: 0 | R44: 0 | S44: 0 | T44: 18
A45: SALES, Sean | B45: 24 | C45: 22 | D45: 0 | E45: 0 | F45: 0 | G45: 0 | H45: 0 | I45: 0 | J45: 0 | K45: 0 | L45: 0 | M45: 0 | N45: 0 | O45: 0 | P45: 0 | Q45: 0 | R45: 0 | S45: 0 | T45: 46
A46: YANG, Jack | B46: 27 | C46: 18 | D46: 0 | E46: 0 | F46: 0 | G46: 0 | H46: 0 | I46: 0 | J46: 0 | K46: 0 | L46: 0 | M46: 0 | N46: 0 | O46: 0 | P46: 0 | Q46: 0 | R46: 0 | S46: 0 | T46: 45
A47: COSGROVE, Steve | B47: 30 | C47: 30 | D47: 30 | E47: 29 | F47: 29 | G47: 28 | H47: 28 | I47: 28 | J47: 28 | K47: 27 | L47: 27 | M47: 26 | N47: 25 | O47: 23 | P47: 0 | Q47: 0 | R47: 0 | S47: 0 | T47: 314
A48: WILD, Joshua | B48: 16 | C48: 0 | D48: 0 | E48: 0 | F48: 0 | G48: 0 | H48: 0 | I48: 0 | J48: 0 | K48: 0 | L48: 0 | M48: 0 | N48: 0 | O48: 0 | P48: 0 | Q48: 0 | R48: 0 | S48: 0 | T48: 16
A49: FOSTER, Stewart | B49: 25 | C49: 25 | D49: 23 | E49: 20 | F49: 14 | G49: 14 | H49: 10 | I49: 9 | J49: 8 | K49: 0 | L49: 0 | M49: 0 | N49: 0 | O49: 0 | P49: 0 | Q49: 0 | R49: 0 | S49: 0 | T49: 148
A50: GIBBONS, Neil | B50: 16 | C50: 14 | D50: 13 | E50: 11 | F50: 10 | G50: 0 | H50: 0 | I50: 0 | J50: 0 | K50: 0 | L50: 0 | M50: 0 | N50: 0 | O50: 0 | P50: 0 | Q50: 0 | R50: 0 | S50: 0 | T50: 64
A51: GOUGH, Dermot | B51: 26 | C51: 25 | D51: 24 | E51: 24 | F51: 0 | G51: 0 | H51: 0 | I51: 0 | J51: 0 | K51: 0 | L51: 0 | M51: 0 | N51: 0 | O51: 0 | P51: 0 | Q51: 0 | R51: 0 | S51: 0 | T51: 99
A52: NOBLE, Kenneth | B52: 9 | C52: 0 | D52: 0 | E52: 0 | F52: 0 | G52: 0 | H52: 0 | I52: 0 | J52: 0 | K52: 0 | L52: 0 | M52: 0 | N52: 0 | O52: 0 | P52: 0 | Q52: 0 | R52: 0 | S52: 0 | T52: 9
A53: CLARKE, Steve | B53: 19 | C53: 0 | D53: 0 | E53: 0 | F53: 0 | G53: 0 | H53: 0 | I53: 0 | J53: 0 | K53: 0 | L53: 0 | M53: 0 | N53: 0 | O53: 0 | P53: 0 | Q53: 0 | R53: 0 | S53: 0 | T53: 19
A54: BACKINSELL, Jim | B54: 24 | C54: 0 | D54: 0 | E54: 0 | F54: 0 | G54: 0 | H54: 0 | I54: 0 | J54: 0 | K54: 0 | L54: 0 | M54: 0 | N54: 0 | O54: 0 | P54: 0 | Q54: 0 | R54: 0 | S54: 0 | T54: 24
A55: ALI, Abir | B55: 19 | C55: 11 | D55: 0 | E55: 0 | F55: 0 | G55: 0 | H55: 0 | I55: 0 | J55: 0 | K55: 0 | L55: 0 | M55: 0 | N55: 0 | O55: 0 | P55: 0 | Q55: 0 | R55: 0 | S55: 0 | T55: 30
A56: GOODENOUGH, Mike | B56: 15 | C56: 15 | D56: 12 | E56: 10 | F56: 0 | G56: 0 | H56: 0 | I56: 0 | J56: 0 | K56: 0 | L56: 0 | M56: 0 | N56: 0 | O56: 0 | P56: 0 | Q56: 0 | R56: 0 | S56: 0 | T56: 52
A57: PERRY, Robert | B57: 13 | C57: 0 | D57: 0 | E57: 0 | F57: 0 | G57: 0 | H57: 0 | I57: 0 | J57: 0 | K57: 0 | L57: 0 | M57: 0 | N57: 0 | O57: 0 | P57: 0 | Q57: 0 | R57: 0 | S57: 0 | T57: 13
A58: WADE, David | B58: 20 | C58: 19 | D58: 16 | E58: 0 | F58: 0 | G58: 0 | H58: 0 | I58: 0 | J58: 0 | K58: 0 | L58: 0 | M58: 0 | N58: 0 | O58: 0 | P58: 0 | Q58: 0 | R58: 0 | S58: 0 | T58: 55
A59: FAYLE, Joseph | B59: 28 | C59: 27 | D59: 27 | E59: 25 | F59: 24 | G59: 23 | H59: 0 | I59: 0 | J59: 0 | K59: 0 | L59: 0 | M59: 0 | N59: 0 | O59: 0 | P59: 0 | Q59: 0 | R59: 0 | S59: 0 | T59: 154
A60: RAE, Nick | B60: 12 | C60: 9 | D60: 6 | E60: 0 | F60: 0 | G60: 0 | H60: 0 | I60: 0 | J60: 0 | K60: 0 | L60: 0 | M60: 0 | N60: 0 | O60: 0 | P60: 0 | Q60: 0 | R60: 0 | S60: 0 | T60: 27
A61: GORMAN, Louis | B61: 30 | C61: 29 | D61: 27 | E61: 0 | F61: 0 | G61: 0 | H61: 0 | I61: 0 | J61: 0 | K61: 0 | L61: 0 | M61: 0 | N61: 0 | O61: 0 | P61: 0 | Q61: 0 | R61: 0 | S61: 0 | T61: 86
A62: BROMLEY, Andrew | B62: 30 | C62: 30 | D62: 30 | E62: 30 | F62: 30 | G62: 0 | H62: 0 | I62: 0 | J62: 0 | K62: 0 | L62: 0 | M62: 0 | N62: 0 | O62: 0 | P62: 0 | Q62: 0 | R62: 0 | S62: 0 | T62: 150
A63: WARREN, Dominic | B63: 20 | C63: 19 | D63: 18 | E63: 18 | F63: 18 | G63: 0 | H63: 0 | I63: 0 | J63: 0 | K63: 0 | L63: 0 | M63: 0 | N63: 0 | O63: 0 | P63: 0 | Q63: 0 | R63: 0 | S63: 0 | T63: 93
A64: WHITWORTH, Rab | B64: 27 | C64: 27 | D64: 26 | E64: 25 | F64: 23 | G64: 23 | H64: 21 | I64: 20 | J64: 20 | K64: 18 | L64: 0 | M64: 0 | N64: 0 | O64: 0 | P64: 0 | Q64: 0 | R64: 0 | S64: 0 | T64: 230
A65: HOLMES, Tony | B65: 21 | C65: 21 | D65: 13 | E65: 13 | F65: 12 | G65: 12 | H65: 11 | I65: 8 | J65: 0 | K65: 0 | L65: 0 | M65: 0 | N65: 0 | O65: 0 | P65: 0 | Q65: 0 | R65: 0 | S65: 0 | T65: 111
A66: GREENWOOD, Kirsty | B66: 25 | C66: 24 | D66: 24 | E66: 24 | F66: 23 | G66: 23 | H66: 23 | I66: 22 | J66: 21 | K66: 21 | L66: 20 | M66: 18 | N66: 0 | O66: 0 | P66: 0 | Q66: 0 | R66: 0 | S66: 0 | T66: =SUM(B66:L66) -> 250
A67: POLAND, Louise | B67: 19 | C67: 19 | D67: 0 | E67: 0 | F67: 0 | G67: 0 | H67: 0 | I67: 0 | J67: 0 | K67: 0 | L67: 0 | M67: 0 | N67: 0 | O67: 0 | P67: 0 | Q67: 0 | R67: 0 | S67: 0 | T67: 38
A68: CUTHBERT, Isabella | B68: 27 | C68: 27 | D68: 26 | E68: 26 | F68: 24 | G68: 23 | H68: 0 | I68: 0 | J68: 0 | K68: 0 | L68: 0 | M68: 0 | N68: 0 | O68: 0 | P68: 0 | Q68: 0 | R68: 0 | S68: 0 | T68: 153
A69: RYAN, Jenny | B69: 25 | C69: 24 | D69: 23 | E69: 22 | F69: 0 | G69: 0 | H69: 0 | I69: 0 | J69: 0 | K69: 0 | L69: 0 | M69: 0 | N69: 0 | O69: 0 | P69: 0 | Q69: 0 | R69: 0 | S69: 0 | T69: 94
A70: RILEY, Sandra | B70: 16 | C70: 14 | D70: 13 | E70: 12 | F70: 0 | G70: 0 | H70: 0 | I70: 0 | J70: 0 | K70: 0 | L70: 0 | M70: 0 | N70: 0 | O70: 0 | P70: 0 | Q70: 0 | R70: 0 | S70: 0 | T70: 55
A71: BREALEY, Jane | B71: 25 | C71: 25 | D71: 25 | E71: 23 | F71: 23 | G71: 0 | H71: 0 | I71: 0 | J71: 0 | K71: 0 | L71: 0 | M71: 0 | N71: 0 | O71: 0 | P71: 0 | Q71: 0 | R71: 0 | S71: 0 | T71: 121
A72: CRISP, Zoe | B72: 22 | C72: 19 | D72: 17 | E72: 17 | F72: 16 | G72: 14 | H72: 0 | I72: 0 | J72: 0 | K72: 0 | L72: 0 | M72: 0 | N72: 0 | O72: 0 | P72: 0 | Q72: 0 | R72: 0 | S72: 0 | T72: 105
A73: ANDREWS, Katherine | B73: 23 | C73: 23 | D73: 21 | E73: 20 | F73: 20 | G73: 19 | H73: 13 | I73: 12 | J73: 12 | K73: 11 | L73: 10 | M73: 9 | N73: 0 | O73: 0 | P73: 0 | Q73: 0 | R73: 0 | S73: 0 | T73: 184
A74: GARTLAND, Moira | B74: 22 | C74: 19 | D74: 18 | E74: 0 | F74: 0 | G74: 0 | H74: 0 | I74: 0 | J74: 0 | K74: 0 | L74: 0 | M74: 0 | N74: 0 | O74: 0 | P74: 0 | Q74: 0 | R74: 0 | S74: 0 | T74: 59
A75: FARLAM, Faye | B75: 21 | C75: 20 | D75: 20 | E75: 17 | F75: 0 | G75: 0 | H75: 0 | I75: 0 | J75: 0 | K75: 0 | L75: 0 | M75: 0 | N75: 0 | O75: 0 | P75: 0 | Q75: 0 | R75: 0 | S75: 0 | T75: 78
A76: COSGROVE, Susie | B76: 16 | C76: 16 | D76: 16 | E76: 15 | F76: 14 | G76: 0 | H76: 0 | I76: 0 | J76: 0 | K76: 0 | L76: 0 | M76: 0 | N76: 0 | O76: 0 | P76: 0 | Q76: 0 | R76: 0 | S76: 0 | T76: 77
A77: COWDRAY, Kat | B77: 27 | C77: 27 | D77: 26 | E77: 26 | F77: 26 | G77: 26 | H77: 25 | I77: 24 | J77: 22 | K77: 0 | L77: 0 | M77: 0 | N77: 0 | O77: 0 | P77: 0 | Q77: 0 | R77: 0 | S77: 0 | T77: 229
A78: TURNER, Yvette | B78: 18 | C78: 15 | D78: 11 | E78: 10 | F78: 0 | G78: 0 | H78: 0 | I78: 0 | J78: 0 | K78: 0 | L78: 0 | M78: 0 | N78: 0 | O78: 0 | P78: 0 | Q78: 0 | R78: 0 | S78: 0 | T78: 54
A79: HUNTER, Maria | B79: 25 | C79: 22 | D79: 22 | E79: 22 | F79: 22 | G79: 22 | H79: 22 | I79: 21 | J79: 18 | K79: 0 | L79: 0 | M79: 0 | N79: 0 | O79: 0 | P79: 0 | Q79: 0 | R79: 0 | S79: 0 | T79: 196
A80: CUCKSEY, Lesley-Anne | B80: 22 | C80: 21 | D80: 20 | E80: 20 | F80: 19 | G80: 18 | H80: 17 | I80: 17 | J80: 16 | K80: 13 | L80: 0 | M80: 0 | N80: 0 | O80: 0 | P80: 0 | Q80: 0 | R80: 0 | S80: 0 | T80: 183
A81: MCNICHOLAS, Hayley | B81: 14 | C81: 13 | D81: 11 | E81: 10 | F81: 9 | G81: 0 | H81: 0 | I81: 0 | J81: 0 | K81: 0 | L81: 0 | M81: 0 | N81: 0 | O81: 0 | P81: 0 | Q81: 0 | R81: 0 | S81: 0 | T81: 57
A82: DROSZCZ, Kathleen | B82: 23 | C82: 12 | D82: 0 | E82: 0 | F82: 0 | G82: 0 | H82: 0 | I82: 0 | J82: 0 | K82: 0 | L82: 0 | M82: 0 | N82: 0 | O82: 0 | P82: 0 | Q82: 0 | R82: 0 | S82: 0 | T82: 35
A83: RICE, Kate | B83: 13 | C83: 10 | D83: 0 | E83: 0 | F83: 0 | G83: 0 | H83: 0 | I83: 0 | J83: 0 | K83: 0 | L83: 0 | M83: 0 | N83: 0 | O83: 0 | P83: 0 | Q83: 0 | R83: 0 | S83: 0 | T83: 23
A84: AINSLIE, Sharron | B84: 25 | C84: 23 | D84: 21 | E84: 20 | F84: 0 | G84: 0 | H84: 0 | I84: 0 | J84: 0 | K84: 0 | L84: 0 | M84: 0 | N84: 0 | O84: 0 | P84: 0 | Q84: 0 | R84: 0 | S84: 0 | T84: 89
A85: REES, Mary | B85: 24 | C85: 24 | D85: 23 | E85: 23 | F85: 21 | G85: 21 | H85: 21 | I85: 19 | J85: 19 | K85: 18 | L85: 15 | M85: 0 | N85: 0 | O85: 0 | P85: 0 | Q85: 0 | R85: 0 | S85: 0 | T85: 228
A86: DAVIES, Nicci | B86: 16 | C86: 16 | D86: 15 | E86: 14 | F86: 12 | G86: 0 | H86: 0 | I86: 0 | J86: 0 | K86: 0 | L86: 0 | M86: 0 | N86: 0 | O86: 0 | P86: 0 | Q86: 0 | R86: 0 | S86: 0 | T86: 73
A87: SAUNDERS, Rachel | B87: 20 | C87: 17 | D87: 0 | E87: 0 | F87: 0 | G87: 0 | H87: 0 | I87: 0 | J87: 0 | K87: 0 | L87: 0 | M87: 0 | N87: 0 | O87: 0 | P87: 0 | Q87: 0 | R87: 0 | S87: 0 | T87: 37
A88: BARBAT, Julie | B88: 20 | C88: 20 | D88: 20 | E88: 19 | F88: 19 | G88: 19 | H88: 18 | I88: 0 | J88: 0 | K88: 0 | L88: 0 | M88: 0 | N88: 0 | O88: 0 | P88: 0 | Q88: 0 | R88: 0 | S88: 0 | T88: 135
A89: HOLT, Sallie | B89: 29 | C89: 0 | D89: 0 | E89: 0 | F89: 0 | G89: 0 | H89: 0 | I89: 0 | J89: 0 | K89: 0 | L89: 0 | M89: 0 | N89: 0 | O89: 0 | P89: 0 | Q89: 0 | R89: 0 | S89: 0 | T89: 29
A90: LAMONT, Sharon | B90: 22 | C90: 21 | D90: 21 | E90: 21 | F90: 21 | G90: 19 | H90: 18 | I90: 18 | J90: 17 | K90: 17 | L90: 17 | M90: 17 | N90: 16 | O90: 16 | P90: 0 | Q90: 0 | R90: 0 | S90: 0 | T90: 212
A91: ENGLE, Alison | B91: 22 | C91: 21 | D91: 20 | E91: 18 | F91: 18 | G91: 17 | H91: 15 | I91: 15 | J91: 0 | K91: 0 | L91: 0 | M91: 0 | N91: 0 | O91: 0 | P91: 0 | Q91: 0 | R91: 0 | S91: 0 | T91: 146
A92: MCCONNELL, Vicky | B92: 28 | C92: 24 | D92: 0 | E92: 0 | F92: 0 | G92: 0 | H92: 0 | I92: 0 | J92: 0 | K92: 0 | L92: 0 | M92: 0 | N92: 0 | O92: 0 | P92: 0 | Q92: 0 | R92: 0 | S92: 0 | T92: 52
A93: CUTHBERT, Caet | B93: 20 | C93: 20 | D93: 19 | E93: 15 | F93: 15 | G93: 14 | H93: 14 | I93: 14 | J93: 13 | K93: 11 | L93: 9 | M93: 0 | N93: 0 | O93: 0 | P93: 0 | Q93: 0 | R93: 0 | S93: 0 | T93: 164
A94: BLACKLOCK, Becky | B94: 30 | C94: 30 | D94: 30 | E94: 30 | F94: 30 | G94: 30 | H94: 30 | I94: 30 | J94: 30 | K94: 30 | L94: 30 | M94: 30 | N94: 30 | O94: 0 | P94: 0 | Q94: 0 | R94: 0 | S94: 0 | T94: 330
A95: ALTY, Michelle | B95: 30 | C95: 30 | D95: 29 | E95: 29 | F95: 28 | G95: 27 | H95: 27 | I95: 27 | J95: 27 | K95: 26 | L95: 26 | M95: 0 | N95: 0 | O95: 0 | P95: 0 | Q95: 0 | R95: 0 | S95: 0 | T95: 306
A96: KENNY, Anna | B96: 28 | C96: 28 | D96: 27 | E96: 27 | F96: 26 | G96: 25 | H96: 24 | I96: 0 | J96: 0 | K96: 0 | L96: 0 | M96: 0 | N96: 0 | O96: 0 | P96: 0 | Q96: 0 | R96: 0 | S96: 0 | T96: 185
A97: ELLISON, Sandra | B97: 13 | C97: 12 | D97: 0 | E97: 0 | F97: 0 | G97: 0 | H97: 0 | I97: 0 | J97: 0 | K97: 0 | L97: 0 | M97: 0 | N97: 0 | O97: 0 | P97: 0 | Q97: 0 | R97: 0 | S97: 0 | T97: 25
A98: STANSFIELD, Helen-Anne | B98: 28 | C98: 26 | D98: 26 | E98: 25 | F98: 25 | G98: 25 | H98: 25 | I98: 25 | J98: 24 | K98: 24 | L98: 0 | M98: 0 | N98: 0 | O98: 0 | P98: 0 | Q98: 0 | R98: 0 | S98: 0 | T98: 253
A99: MCARD, Jan | B99: 29 | C99: 29 | D99: 29 | E99: 29 | F99: 29 | G99: 29 | H99: 29 | I99: 28 | J99: 28 | K99: 28 | L99: 27 | M99: 27 | N99: 0 | O99: 0 | P99: 0 | Q99: 0 | R99: 0 | S99: 0 | T99: 314
A100: CHAPMAN, Nicci | B100: 18 | C100: 15 | D100: 13 | E100: 13 | F100: 11 | G100: 0 | H100: 0 | I100: 0 | J100: 0 | K100: 0 | L100: 0 | M100: 0 | N100: 0 | O100: 0 | P100: 0 | Q100: 0 | R100: 0 | S100: 0 | T100: 70
A101: RYAN, Kate | B101: 23 | C101: 22 | D101: 0 | E101: 0 | F101: 0 | G101: 0 | H101: 0 | I101: 0 | J101: 0 | K101: 0 | L101: 0 | M101: 0 | N101: 0 | O101: 0 | P101: 0 | Q101: 0 | R101: 0 | S101: 0 | T101: 45
A102: REYNOLDS, Lydia | B102: 14 | C102: 0 | D102: 0 | E102: 0 | F102: 0 | G102: 0 | H102: 0 | I102: 0 | J102: 0 | K102: 0 | L102: 0 | M102: 0 | N102: 0 | O102: 0 | P102: 0 | Q102: 0 | R102: 0 | S102: 0 | T102: 14
A103: REYNOLDS, Sue | B103: 28 | C103: 28 | D103: 28 | E103: 28 | F103: 27 | G103: 27 | H103: 27 | I103: 26 | J103: 26 | K103: 26 | L103: 26 | M103: 25 | N103: 0 | O103: 0 | P103: 0 | Q103: 0 | R103: 0 | S103: 0 | T103: 297
A104: MAGEE, Mary | B104: 16 | C104: 15 | D104: 14 | E104: 13 | F104: 12 | G104: 12 | H104: 12 | I104: 11 | J104: 0 | K104: 0 | L104: 0 | M104: 0 | N104: 0 | O104: 0 | P104: 0 | Q104: 0 | R104: 0 | S104: 0
A105: THOMPSON, Joniece | B105: 24 | C105: 24 | D105: 24 | E105: 23 | F105: 0 | G105: 0 | H105: 0 | I105: 0 | J105: 0 | K105: 0 | L105: 0 | M105: 0 | N105: 0 | O105: 0 | P105: 0 | Q105: 0 | R105: 0 | S105: 0
A106: OPARA, Elaine | B106: 29 | C106: 29 | D106: 29 | E106: 29 | F106: 29 | G106: 28 | H106: 28 | I106: 28 | J106: 0 | K106: 0 | L106: 0 | M106: 0 | N106: 0 | O106: 0 | P106: 0 | Q106: 0 | R106: 0 | S106: 0
